Workbook

Sheet Form
A1: UCTC STP-OFF SYSTEM BRIDGE BLOCK PROGRAM DATA FORM
A2: Project Sponsor
A4: First Name | D4: Last Name
A6: Address 1
A8: Address 2
A10: City | E10: State: NY | G10: Zip Code
A12: email | E12: phone
A14: County | B14: =VLOOKUP($B$16,BridgeTableNew!$A$2:$U$243,3,FALSE) -> Ulster | E14: Project Priority
A16: BIN | B16: 2224530 | D16: Feature Carried | E16: =VLOOKUP($B$16,BridgeTableNew!$A$2:$U$243,6,FALSE) -> DRUMMOND FALLS RD
A17: Related PIN | D17: Feature Crossed | E17: =VLOOKUP($B$16,BridgeTableNew!$A$2:$T$243,7,FALSE) -> KAATERSKILL CREEK
D18: Owner | E18: =VLOOKUP($B$16,BridgeTableNew!$A$2:$U$243,4,FALSE) -> 40 - Town | G18: Region | H18: =VLOOKUP($B$16,BridgeTableNew!$A$2:$U$243,2,FALSE) -> 8
A19: STP Off | B19: =IF(VLOOKUP(Form!$E$19,ref!A67:C80,3,FALSE) = "On", "Ineligible", "Eligible") -> Eligible | D19: Functional Class | E19: =VLOOKUP($B$16,BridgeTableNew!$A$2:$AA$243,27,FALSE) -> 09
A21: Facility Importance | D21: Cost & Schedule | G21: Risk & Restrictions
A22: AADT | B22: =VLOOKUP($B$16,BridgeTableNew!$A$2:$U$243,8,FALSE) -> 285 | D22: Const. Cost | G22: Posting | I22: =VLOOKUP($B$16,BridgeTableNew!$A$2:$U$243,16,FALSE) -> 10
A23: % Trucks | B23: =VLOOKUP($B$16,BridgeTableNew!$A$2:$U$243,9,FALSE) -> 4.91 | D23: Total Cost | G23: Hyd. Vuln. Rating | I23: =VLOOKUP($B$16,BridgeTableNew!$A$2:$U$243,17,FALSE) -> 4
A24: Detour (mi) | B24: =VLOOKUP($B$16,BridgeTableNew!$A$2:$U$243,10,FALSE) -> 1 | D24: SFY Letting | G24: Fracture Critical | I24: =IF(F25="N","No","Yes") -> Yes
F25: =VLOOKUP($B$16,BridgeTableNew!$A$2:$U$243,18,FALSE) -> Y | G25: Design Type | I25: =VLOOKUP($F$26,ref!$A$1:$B$45,2,FALSE) -> Multi Girder Rolled Beam
A26: Structure Details | D26: Capital Need | F26: =VLOOKUP($B$16,BridgeTableNew!$A$2:$U$243,19,FALSE) -> 09 | G26: Material Type | I26: =VLOOKUP($F$27,ref!A47:B63,2,FALSE) -> Steel
A27: Year Built | B27: =VLOOKUP($B$16,BridgeTableNew!$A$2:$U$243,11,FALSE) -> 1884 | D27: Condition Rating | E27: =VLOOKUP($B$16,BridgeTableNew!$A$2:$AA$243,24,FALSE) -> 4.022 | F27: =VLOOKUP($B$16,BridgeTableNew!$A$2:$U$243,20,FALSE) -> 1
A28: Deck Area | B28: =VLOOKUP($B$16,BridgeTableNew!$A$2:$U$243,12,FALSE) -> 798 | D28: Rating Date | E28: =VLOOKUP($B$16,BridgeTableNew!$A$2:$AA$243,25,FALSE) -> 2019-07-16 | F28: =VLOOKUP($B$16,BridgeTableNew!$A$2:$U$243,14,FALSE) -> Y
D29: General Rating | E29: =VLOOKUP($B$16,BridgeTableNew!$A$2:$AS$243,28,FALSE) -> 4
D30: Structural Deficient '18 | E30: =IF(F28="N","No","Yes") -> Yes | G30: LBPI '18 | H30: =VLOOKUP($B$16,BridgeTableNew!$A$2:$U$243,21,FALSE) -> 0.437
D31: Model Recmdn. '18 | E31: =VLOOKUP($B$16,BridgeTableNew!$A$2:$U$243,15,FALSE) -> majorrehab | G31: UCLBPI | H31: =VLOOKUP($B$16,BridgeTableNew!$A$2:$AS$243,45,FALSE) -> 0.4708095238
A33: Project Scope Description
A51: Project Commentary
A52: Sponsor to describe unique elements and important factors that cannot readily be captured solely by the available data.
A71: Affirmations
A72: Place an “X” in the boxes to indicate that you have read and understand the following:
B73: The sponsor has provided a signed cover letter from the chief elected official or equivalent along with this Project Justification Package.
B74: The sponsoring municipality or agency agrees to provide the minimum required local match (20% of the total project cost). NOTE: The 20% local match may be reduced depending on the project type, the federal fund source and the availability of matching state funds.
B75: The sponsoring municipality or agency acknowledges that funds for locally administered federal aid projects will be provided on a reimbursement basis. The sponsor will be responsible for 100% of the upfront costs and will be reimbursed following completion of the project.
B76: The sponsoring municipality or agency acknowledges that the cost estimate provided by the sponsor may be adjusted by UCTC staff based on federal unit costs or other information related to federal aid projects.
B77: The sponsoring municipality or agency acknowledges that if preliminary engineering funds are not obligated in the federal fiscal year in which they are programmed, the entire project will be removed from the TIP and federal funds will be reprogrammed for other purposes. The project would then have no status. The UCTC Technical Committee can take action to approve exceptions to this rule at its discretion.

Sheet Narrative Sheet
A1: Beyond Preservation Project Review NARRATIVE SHEET
A6: Section A: Project Description
A8: BIN | B8: =Form!B16 -> 2224530
A10: Project Scope
A15: Project Objective
A21: Section B: Project Context
A23: 1.) Describe how the proposed project provides critical links to the area the project serves (examples are multi-modal connections, large residential areas, emergency routes, freight routes, employment centers etc). Discuss type and magnitude of link.
A29: 2.) How was the need for the project identified? Was the project derived from a local bridge work program, a planning/engineering study, part of an overall plan, or part of an existing capital plan? Other source? Provide a copy or web link to the related planning/engineering studies or other planning work as part of this application
A35: 3.) What specific elements will be addressed in the project?

Sheet Funding
A1: UCTC STP-OFF SYSTEM BRIDGE BLOCK PROGRAM FUNDING WORKSHEET
A3: Element Cost Estimates
A4: Element | B4: Unit | C4: Unit Price | D4: Quantity | E4: Total Cost | F4: Estimate source
A5: eg 5' wide sidewalk | B5: LF | C5: 74 | D5: 20 | E5: =C5*D5 -> 1480 | F5: NYSDOT Item Numbers: 608.0101 - CONCRETE SIDEWALKS AND DRIVEWAYS203.02 - UNCLASSIFIED EXCAVATION AND DISPOSAL 304.12 - SUBBASE COURSE TYPE 2
E6: =C6*D6 -> 0
E7: 0
E8: 0
E9: 0
E10: 0
E11: 0
E12: 0
E13: 0
E14: 0
E15: 0
E16: 0
E17: 0
E18: 0
A20: Estimated Total Project Costs
A21: Construction Costs (in 2020 $) | E21: =SUM(E6:E18) -> 0
A22: Inspection Cost/Contingency (10% of construction cost)
A23: All Design Phases:
A24: Total Project Cost: | E24: =SUM(E21:E23) -> 0
A27: Funding Sources
A28: Federal Funds Requested + Required 20% Local Match*
A29: Additional Local Funds Beyond the Required Match**
A30: Funds for Other Sources Beyond the Required Match **
A31: List the source of the other funding:
A32: Total Project Cost***: | E32: =SUM(E28:E31) -> 0
A36: * Match percentage may vary based upon federal fund source requirements.
A37: ** These funds would be in addition to the required local match
A38: *** The total in the Total Project Cost section must equal the total in the Funding Sources section

Sheet ref (hidden)
A1: Design Types
A2: 01 | B2: Slab
A3: 02 | B3: Slab, Voided
A4: 03 | B4: Box, Adjacent
A5: 04 | B5: Box, Spread
A6: 05 | B6: Tee Beam
A7: 06 | B7: Prestressed Conc I-Beam
A8: 07 | B8: Prestr Conc Box Channel
A9: 08 | B9: Segmental Box
A10: 09 | B10: Multi Girder Rolled Beam
A11: 10 | B11: Deck w/Floorbeam
A12: 11 | B12: Thru w/Floorbeam
A13: 12 | B13: Jack Arch Rolled Beam
A14: 13 | B14: Multi Girder Plate Girder
A15: 14 | B15: Deck w/Floorbeam
A16: 15 | B16: Thru w/Floorbeam
A17: 16 | B17: Jack Arch Plate Girder
A18: 17 | B18: Deck Truss
A19: 18 | B19: Thru Truss w/Ovh Bracing
A20: 19 | B20: Thru Truss no Ovh Bracing
A21: 20 | B21: Combination Truss
A22: 21 | B22: Kit Bridge Truss
A23: 22 | B23: Thru Arch
A24: 23 | B24: Tied Thru Arch
A25: 24 | B25: Deck Arch Open Spandrel
A26: 25 | B26: Deck Arch Clsed Spandrel
A27: 26 | B27: Metal Pipe Arch
A28: 27 | B28: Frame
A29: 28 | B29: Frame w/Floorbeam
A30: 29 | B30: Movable, Bascule
A31: 30 | B31: Movable, Lift
A32: 31 | B32: Movable, Swing
A33: 32 | B33: Orthotropic
A34: 35 | B34: Inverset, Plate Girder
A35: 36 | B35: Inverset, Rolled Beam
A36: 37 | B36: Suspension
A37: 38 | B37: Single Box
A38: 39 | B38: Tunnel
A39: 40 | B39: Single Box Culvert
A40: 41 | B40: Multiple Pipe Culvert
A41: 42 | B41: Pipe Culvert
A42: 43 | B42: Multiple Box Culvert
A43: 44 | B43: Timber Beam
A44: XX | B44: Other
A45: YY | B45: Unknown
A47: Material Types
A48: 1 | B48: Steel
A49: 2 | B49: Weathering Steel
A50: 3 | B50: Special Steel
A51: 4 | B51: Hybrid Steel Section
A52: 5 | B52: Corrugated Steel
A53: 6 | B53: Wrought or Cast Iron
A54: 7 | B54: Aluminum
A55: 8 | B55: Timber
A56: 9 | B56: Masonry
A57: A | B57: Concrete, Unreinforced
A58: B | B58: Concrete, Reinforced
A59: C | B59: Concrete, Unknown
A60: D | B60: Prestr Conc Post-Tension
A61: E | B61: Prestr Conc Pre-Tensioned
A62: F | B62: Prestressed Conc Unkn
A63: X | B63: Other
A66: Functional Class Codes | C66: STP
A67: 01 | B67: Interstate | C67: On
A68: 02 | B68: Principal Arterial | C68: On
A69: 04 | B69: Principal Arterial | C69: On
A70: 06 | B70: Minor Arterial | C70: On
A71: 07 | B71: Major Collector | C71: On
A72: 08 | B72: Minor Collector | C72: Off
A73: 09 | B73: Local | C73: Off
A74: 11 | B74: Interstate | C74: On
A75: 12 | B75: Principal Arterial | C75: On
A76: 14 | B76: Principal Arterial | C76: On
A77: 16 | B77: Minor Arterial | C77: On
A78: 17 | B78: Major Collector | C78: On
A79: 18 | B79: Minor Collector | C79: On
A80: 19 | B80: Local | C80: Off

Sheet ImportToDB (hidden)
A1: BIN | B1: PIN | C1: Const Cost | D1: Total Cost | E1: SFY Letting | F1: First Name | G1: Last Name | H1: Address 1 | I1: Address 2 | J1: City | K1: Zip Code | L1: Project Priority | M1: Project Scope Description | N1: Project Commentary | O1: Project Sponsor | P1: email | Q1: phone
A2: =Form!B16 -> 2224530 | B2: =Form!B17 -> 0 | C2: =Form!E22 -> 0 | D2: =Form!E23 -> 0 | E2: =Form!E24 -> 0 | F2: =Form!B4 -> 0 | G2: =Form!E4 -> 0 | H2: =Form!B6 -> 0 | I2: =Form!B8 -> 0 | J2: =Form!B10 -> 0 | K2: =Form!H10 -> 0 | L2: =Form!H14 -> 0 | M2: =Form!A34 -> 0 | N2: =Form!A53 -> 0 | O2: =Form!C2 -> 0 | P2: =Form!B12 -> 0 | Q2: =Form!F12 -> 0

Sheet Index Parameters
A1: Ulster County Local Bridge Priority Index (0-75)
A2: Category | B2: Category Points | C2: Individual Parameter | D2: Parameter Points
A3: Capital Need | B3: 32.5 | C3: General Recommendation | D3: 27.5
C4: Structural Deficiency | D4: 5
A5: Facility Importance | B5: 27.5 | C5: AADT | D5: 7
C6: % Trucks | D6: 7
C7: Detour Length | D7: 13.5
A8: Restrictions | B8: 5 | C8: Postings | D8: 5
A9: Risk/Resiliency | B9: 10 | C9: Fracture Critical | D9: 5
C10: Hydraulic Vulnerability | D10: 5
A11: Total | D11: =SUM(D3:D10) -> 75

Sheet BridgeTableNew (hidden)
AD1: 27.5 | AH1: 5 | AI1: 7 | AJ1: 7 | AK1: 13.5 | AL1: 5 | AM1: 5 | AN1: 5 | AR1: =SUM(AD1:AN1) -> 75 | AS1: out of 1
A2: BIN | B2: REGION | C2: County Name | D2: PRIMARY_OWNER | E2: PRIMARY_OWNER_ID | F2: CARRIED | G2: CROSSED | H2: AADT | I2: DAILY TRUCK TRAFFIC (%) | J2: DETOUR LENGTH (MI) | K2: YEAR BUILT | L2: DECK AREA (SQ FT) | M2: CONDITION RATING | N2: STRUCTRUALLY DEFICIENT | O2: currentwork | P2: POSTED LOAD (TONS) | Q2: HYDRAULIC RATING | R2: FRACTURE CRITICAL | S2: DESIGN TYPE | T2: MATERIAL | U2: LBPI | V2: NBI | W2: NBI BIN | X2: NYSDOT CON RATE | Y2: NYSDOT CR DATE | Z2: Most recent Con | AA2: FC | AB2: general rec | AC2: gen con | AD2: Gen con score | AE2: actual cond percentile | AF2: Gen percentile | AG2: nbi sd | AH2: SD score | AI2: AADT Score | AJ2: Truck Score | AK2: detour score rev | AL2: posted score rev | AM2: Fracture score | AN2: Hydro vuln Score | AO2: detour len comp | AP2: posted comp | AR2: Total Score | AS2: UCLBPI
A3: 2019580 | B3: 8 | C3: Ulster | D3: 42 - City | E3: 42 | F3: GREENKILL AVENUE | G3: BROADWAY RTE 28 | H3: 3033 | I3: 1.26 | J3: 0 | K3: 1952 | L3: 2900 | M3: 3.406 | N3: N | O3: cyclical | P3: 98 | R3: Y | S3: 15 | T3: 1 | U3: 0.457 | V3: 9 | W3: Good | X3: 6.583 | Y3: 2019-09-03 | Z3: 6.583 | AA3: 17 | AB3: 7 | AC3: 7 | AD3: =27.5-(AC3*(27.5/7)) -> 0 | AE3: =IF(Z3>0,27.5-(_xlfn.PERCENTRANK.EXC(Z:Z,Z3))/(1/27.5),"") -> 1.485 | AF3: =IF(AC3>0,(27.5-(_xlfn.PERCENTRANK.INC(AC:AC,AC3))/(1/27.5)),"") -> 1.6225 | AG3: =IF(W3="Poor", "Y", "N") -> N | AH3: =_xlfn.IFNA((IF(AG3="N",0,5)),"") -> 0 | AI3: =_xlfn.IFNA((_xlfn.PERCENTRANK.INC(H:H,H3))/(1/7),"") -> 6.573 | AJ3: =(_xlfn.PERCENTRANK.INC(I:I,I3))/(1/7) -> 0.434 | AK3: =IF(J3=99,13.5,(_xlfn.PERCENTRANK.INC(AO:AO,AO3))/(1/12.5)) -> 0 | AL3: =IF(OR(P3=0,P3>97),0,(5-(_xlfn.PERCENTRANK.EXC(AP:AP,AP3))/(1/5))) -> 0 | AM3: =IF(R3="Y",5,0) -> 5 | AN3: =IFERROR((Q3-1),0) -> 0 | AO3: =IF(J3=99,"",J3) -> 0 | AP3: =IF(OR(P3=0,P3>97),"",P3) ->  | AR3: =SUM(AN3,AM3,AL3,AK3,AJ3,AI3,AH3,AD3) -> 12.007 | AS3: =AR3/75 -> 0.1600933333
A4: 2224200 | B4: 8 | C4: Ulster | D4: 40 - Town | E4: 40 | F4: BALACE ROAD | G4: RONDOUT CREEK | H4: 16 | I4: 4.91 | J4: 99 | K4: 2006 | L4: 1206 | M4: 6.723 | N4: N | O4: cyclical | P4: 0 | Q4: 5 | R4: N | S4: 03 | T4: E | U4: 0.137 | V4: 7 | W4: Good | X4: 6.429 | Y4: 2018-10-24 | Z4: 6.429 | AA4: 09 | AB4: 6 | AC4: 6 | AD4: 3.928571429 | AE4: =IF(Z4>0,27.5-(_xlfn.PERCENTRANK.EXC(Z:Z,Z4))/(1/27.5),"") -> 2.75 | AF4: 6.105 | AG4: N | AH4: 0 | AI4: 0.455 | AJ4: 1.981 | AK4: 13.5 | AL4: 0 | AM4: 0 | AN4: 4 | AR4: 23.86457143 | AS4: =AR4/75 -> 0.3181942857
A5: 2224210 | B5: 8 | C5: Ulster | D5: 40 - Town | E5: 40 | F5: CLOVE ROAD | G5: COXING KILL | H5: 228 | I5: 4.91 | J5: 6 | K5: 1930 | L5: 691 | M5: 3.491 | N5: Y | O5: replace | P5: 12 | Q5: 2 | R5: N | S5: 21 | T5: 1 | U5: 0.56 | V5: 3 | W5: Poor | X5: 3.667 | Y5: 2019-04-11 | Z5: 3.667 | AA5: 09 | AB5: 3 | AC5: 3 | AD5: 15.71428571 | AE5: 24.1175 | AF5: 27.06 | AG5: Y | AH5: 5 | AI5: 3.367 | AJ5: 1.981 | AK5: 8.85 | AL5: 3.53 | AM5: 0 | AN5: 1 | AO5: 6 | AP5: 12 | AR5: 39.44228571 | AS5: 0.5258971429
A6: 2224220 | B6: 8 | C6: Ulster | D6: 40 - Town | E6: 40 | F6: CLOVE ROAD | G6: COXING KILL | H6: 228 | I6: 4.91 | J6: 6 | K6: 1988 | L6: 690 | M6: 4.543 | N6: N | O6: majorrehab | P6: 0 | Q6: 4 | R6: N | S6: 27 | T6: B | U6: 0.258 | V6: 6 | W6: Fair | X6: 4.385 | Y6: 2018-04-20 | Z6: 4.385 | AA6: 09 | AB6: 5 | AC6: 5 | AD6: 7.857142857 | AE6: 17.9575 | AF6: 17.16 | AG6: N | AH6: 0 | AI6: 3.367 | AJ6: 1.981 | AK6: 8.85 | AL6: 0 | AM6: 0 | AN6: 3 | AO6: 6 | AR6: 25.05514286 | AS6: 0.3340685714
A7: 2224230 | B7: 8 | C7: Ulster | D7: 40 - Town | E7: 40 | F7: BARNHART RD | G7: BEAVER KILL | H7: 52 | I7: 3.85 | J7: 99 | K7: 1895 | L7: 1170 | M7: 5.361 | N7: N | O7: cyclical | P7: 0 | Q7: 4 | R7: Y | S7: 09 | T7: 1 | U7: 0.118 | V7: 5 | W7: Fair | X7: 5 | Y7: 2018-11-01 | Z7: 5 | AA7: 09 | AB7: 5 | AC7: 5 | AD7: 7.857142857 | AE7: 12.1825 | AF7: 17.16 | AG7: N | AH7: 0 | AI7: 1.274 | AJ7: 0.903 | AK7: 13.5 | AL7: 0 | AM7: 5 | AN7: 3 | AR7: 31.53414286 | AS7: 0.4204552381
A8: 2224240 | B8: 8 | C8: Ulster | D8: 40 - Town | E8: 40 | F8: MILL BROOK ROAD | G8: MILL BROOK | H8: 42 | I8: 10.53 | J8: 2 | K8: 1933 | L8: 750 | M8: 4.123 | N8: Y | O8: majorrehab | P8: 0 | Q8: 3 | R8: N | S8: 09 | T8: 2 | U8: 0.361 | V8: 4 | W8: Poor | X8: 3.947 | Y8: 2019-04-01 | Z8: 3.947 | AA8: 09 | AB8: 3 | AC8: 3 | AD8: 15.71428571 | AE8: 21.4775 | AF8: 27.06 | AG8: Y | AH8: 5 | AI8: 1.078 | AJ8: 6.853 | AK8: 4.8125 | AL8: 0 | AM8: 0 | AN8: 2 | AO8: 2 | AR8: 35.45778571 | AS8: 0.4727704762
A9: 2224250 | B9: 8 | C9: Ulster | D9: 40 - Town | E9: 40 | F9: MILL BROOK ROAD | G9: BELLE AYR BROOK | H9: 42 | I9: 10.53 | J9: 25 | K9: 1926 | L9: 405 | M9: 3.098 | N9: Y | O9: replace | P9: 0 | Q9: 4 | R9: N | S9: 12 | T9: 1 | U9: 0.533 | V9: 3 | W9: Poor | X9: 7 | Y9: 2019-10-11 | Z9: 7 | AA9: 09 | AB9: 7 | AC9: 7 | AD9: 0 | AE9: 0.3575 | AF9: 1.6225 | AG9: N | AH9: 0 | AI9: 1.078 | AJ9: 6.853 | AK9: 11.7125 | AL9: 0 | AM9: 0 | AN9: 3 | AO9: 25 | AR9: 22.6435 | AS9: 0.3019133333
A10: 2224260 | B10: 8 | C10: Ulster | D10: 40 - Town | E10: 40 | F10: MILL BROOK ROAD | G10: MILL BROOK | H10: 42 | I10: 10.53 | J10: 15 | K10: 2000 | L10: 444 | M10: 5.667 | N10: N | O10: cyclical | P10: 0 | Q10: 5 | R10: N | S10: 40 | T10: B | U10: 0.053 | V10: 6 | W10: Fair | X10: 5 | Y10: 2018-10-11 | Z10: 5 | AA10: 09 | AB10: 5 | AC10: 5 | AD10: 7.857142857 | AE10: 12.1825 | AF10: 17.16 | AG10: =IF(W10="Poor", "Y", "N") -> N | AH10: 0 | AI10: 1.078 | AJ10: 6.853 | AK10: 11.1875 | AL10: 0 | AM10: 0 | AN10: 4 | AO10: 15 | AR10: 30.97564286 | AS10: 0.4130085714
A11: 2224300 | B11: 8 | C11: Ulster | D11: 40 - Town | E11: 40 | F11: OLD ROUTE 209 | G11: KRIPPLEBUSH CREEK | I11: 1 | J11: 1 | K11: 1927 | L11: 900 | M11: 3.571 | N11: Y | O11: majorrehab | P11: 0 | Q11: 4 | R11: N | S11: 01 | T11: B | U11: 0.418 | V11: 4 | W11: Poor | X11: 3.143 | Y11: 2019-06-14 | Z11: 3.143 | AA11: 09 | AB11: 4 | AC11: 4 | AD11: 11.78571429 | AE11: 26.1525 | AF11: 24.75 | AG11: Y | AH11: 5 | AJ11: 0.259 | AK11: 0.775 | AL11: 0 | AM11: 0 | AN11: 3 | AO11: 1 | AR11: 20.81971429 | AS11: 0.2775961905
A12: 2224430 | B12: 8 | C12: Ulster | D12: 40 - Town | E12: 40 | F12: MILL HOOK ROAD | G12: MILL STREAM | H12: 69 | I12: 4.91 | J12: 1 | K12: 1948 | L12: 500 | M12: 4.193 | N12: Y | O12: majorrehab | P12: 14 | Q12: 3 | R12: N | S12: 09 | T12: 1 | U12: 0.404 | V12: 4 | W12: Poor | X12: 3.692 | Y12: 2019-11-07 | Z12: 3.692 | AA12: 09 | AB12: 3 | AC12: 3 | AD12: 15.71428571 | AE12: 23.76 | AF12: 27.06 | AG12: Y | AH12: 5 | AI12: 1.631 | AJ12: 1.981 | AK12: 0.775 | AL12: 3.24 | AM12: 0 | AN12: 2 | AO12: 1 | AP12: 14 | AR12: 30.34128571 | AS12: 0.4045504762
A13: 2224440 | B13: 8 | C13: Ulster | D13: 40 - Town | E13: 40 | F13: STONY KILL ROAD | G13: STONY KILL | H13: 301 | I13: 4.91 | J13: 1 | K13: 1988 | L13: 1196 | M13: 5.263 | N13: N | O13: deckrepl | P13: 0 | Q13: 5 | R13: N | S13: 09 | T13: 1 | U13: 0.02 | V13: 5 | W13: Fair | X13: 5.731 | Y13: 2019-03-28 | Z13: 5.731 | AA13: 09 | AB13: 5 | AC13: 5 | AD13: 7.857142857 | AE13: 6.38 | AF13: 17.16 | AG13: N | AH13: 0 | AI13: 3.857 | AJ13: 1.981 | AK13: 0.775 | AL13: 0 | AM13: 0 | AN13: 4 | AO13: 1 | AR13: 18.47014286 | AS13: 0.2462685714
A14: 2224450 | B14: 8 | C14: Ulster | D14: 40 - Town | E14: 40 | F14: BRIDGE ROAD | G14: STONY KILL | H14: 36 | I14: 3.92 | J14: 1 | K14: 1955 | L14: 664 | M14: 3.577 | N14: Y | O14: majorrehab | P14: 20 | Q14: 2 | R14: N | S14: 09 | T14: 1 | U14: 0.502 | V14: 4 | W14: Poor | X14: 3.577 | Y14: 2019-04-24 | Z14: 3.577 | AA14: 19 | AB14: 3 | AC14: 3 | AD14: 15.71428571 | AE14: 24.6675 | AF14: 27.06 | AG14: Y | AH14: 5 | AI14: 0.882 | AJ14: 0.959 | AK14: 0.775 | AL14: 1.325 | AM14: 0 | AN14: 1 | AO14: 1 | AP14: 20 | AR14: 25.65528571 | AS14: 0.3420704762
A15: 2224460 | B15: 8 | C15: Ulster | D15: 40 - Town | E15: 40 | F15: BOICE MILL ROAD | G15: FALLS MILL BROOK | H15: 149 | I15: 4.91 | J15: 1 | K15: 1988 | L15: 1000 | M15: 2.965 | N15: Y | O15: majorrehab | P15: 13 | Q15: 4 | R15: N | S15: 09 | T15: 1 | U15: 0.544 | V15: 4 | W15: Poor | X15: 2.93 | Y15: 2019-04-25 | Z15: 2.93 | AA15: 09 | AB15: 3 | AC15: 3 | AD15: 15.71428571 | AE15: 26.4825 | AF15: 27.06 | AG15: Y | AH15: =_xlfn.IFNA((IF(AG15="N",0,5)),"") -> 5 | AI15: 2.611 | AJ15: 1.981 | AK15: 0.775 | AL15: 3.385 | AM15: 0 | AN15: 3 | AO15: 1 | AP15: 13 | AR15: 32.46628571 | AS15: 0.4328838095
A16: 2224470 | B16: 8 | C16: Ulster | D16: 40 - Town | E16: 40 | F16: WATER FALLS ROAD | G16: MOMBACCUS CREEK | H16: 54 | I16: 7.41 | J16: 2 | K16: 1955 | L16: 725 | M16: 4.035 | N16: N | O16: majorrehab | P16: 0 | Q16: 4 | R16: N | S16: 09 | T16: 1 | U16: 0.304 | V16: 4 | W16: Poor | X16: 3.684 | Y16: 2019-04-09 | Z16: 3.684 | AA16: 09 | AB16: 4 | AC16: 4 | AD16: 11.78571429 | AE16: 23.87 | AF16: 24.75 | AG16: Y | AH16: 5 | AI16: 1.302 | AJ16: 6.384 | AK16: 4.8125 | AL16: 0 | AM16: 0 | AN16: 3 | AO16: 2 | AR16: 32.28421429 | AS16: 0.4304561905
A17: 2224480 | B17: 8 | C17: Ulster | D17: 40 - Town | E17: 40 | F17: SUNDOWN ROAD | G17: WYNCOOP CREEK | H17: 202 | I17: 4.91 | J17: 2 | K17: 1962 | L17: 518 | M17: 4.544 | N17: N | O17: majorrehab | P17: 0 | Q17: 2 | R17: N | S17: 09 | T17: 1 | U17: 0.273 | V17: 4 | W17: Poor | X17: 4.053 | Y17: 2019-08-20 | Z17: 4.053 | AA17: 09 | AB17: 4 | AC17: 4 | AD17: 11.78571429 | AE17: 20.7075 | AF17: 24.75 | AG17: Y | AH17: 5 | AI17: 3.101 | AJ17: 1.981 | AK17: 4.8125 | AL17: 0 | AM17: 0 | AN17: 1 | AO17: 2 | AR17: 27.68021429 | AS17: 0.3690695238
A18: 2224510 | B18: 8 | C18: Ulster | D18: 40 - Town | E18: 40 | F18: ROCK HILL ROAD | G18: PETERS KILL | H18: 41 | I18: 4.91 | J18: 3 | K18: 2011 | L18: 807 | M18: 5.281 | N18: N | O18: vertdown | P18: 0 | Q18: 4 | R18: N | S18: 09 | T18: 1 | U18: 0.022 | V18: 7 | W18: Good | X18: 4.982 | Y18: 2019-10-01 | Z18: 4.982 | AA18: 09 | AB18: 5 | AC18: 5 | AD18: 7.857142857 | AE18: 12.2925 | AF18: 17.16 | AG18: N | AH18: 0 | AI18: 1.043 | AJ18: 1.981 | AK18: 6.4375 | AL18: 0 | AM18: 0 | AN18: 3 | AO18: 3 | AR18: 20.31864286 | AS18: 0.2709152381
A19: 2224520 | B19: 8 | C19: Ulster | D19: 40 - Town | E19: 40 | F19: PROJECT 32 ROAD | G19: STONY KILL | H19: 64 | I19: 4.91 | J19: 2 | K19: 1955 | L19: 853 | M19: 3.962 | N19: Y | O19: majorrehab | P19: 19 | Q19: 4 | R19: Y | S19: 09 | T19: 1 | U19: 0.413 | V19: 5 | W19: Fair | X19: 3.86 | Y19: 2019-04-24 | Z19: 3.86 | AA19: 09 | AB19: 4 | AC19: 4 | AD19: 11.78571429 | AE19: 22.7425 | AF19: 24.75 | AG19: N | AH19: 0 | AI19: 1.47 | AJ19: 1.981 | AK19: 4.8125 | AL19: 1.475 | AM19: 5 | AN19: 3 | AO19: 2 | AP19: 19 | AR19: 29.52421429 | AS19: 0.3936561905
A20: 2224530 | B20: 8 | C20: Ulster | D20: 40 - Town | E20: 40 | F20: DRUMMOND FALLS RD | G20: KAATERSKILL CREEK | H20: 285 | I20: 4.91 | J20: 1 | K20: 1884 | L20: 798 | M20: 4.149 | N20: Y | O20: majorrehab | P20: 10 | Q20: 4 | R20: Y | S20: 09 | T20: 1 | U20: 0.437 | V20: 4 | W20: Poor | X20: 4.022 | Y20: 2019-07-16 | Z20: 4.022 | AA20: 09 | AB20: 4 | AC20: 4 | AD20: 11.78571429 | AE20: 20.8175 | AF20: 24.75 | AG20: Y | AH20: 5 | AI20: 3.794 | AJ20: 1.981 | AK20: 0.775 | AL20: 3.975 | AM20: 5 | AN20: 3 | AO20: 1 | AP20: 10 | AR20: 35.31071429 | AS20: 0.4708095238
A21: 2224540 | B21: 8 | C21: Ulster | D21: 40 - Town | E21: 40 | F21: CHARLES SMITH RD | G21: KAATERSKILL CREEK | H21: 235 | I21: 4.91 | J21: 3 | K21: 1985 | L21: 2616 | M21: 5.476 | N21: N | O21: cyclical | P21: 0 | Q21: 5 | R21: N | S21: 13 | T21: 1 | U21: 0.024 | V21: 7 | W21: Good | X21: 5.714 | Y21: 2019-05-30 | Z21: 5.714 | AA21: 09 | AB21: 5 | AC21: 5 | AD21: 7.857142857 | AE21: 6.6 | AF21: 17.16 | AG21: N | AH21: 0 | AI21: 3.5 | AJ21: 1.981 | AK21: 6.4375 | AL21: 0 | AM21: 0 | AN21: 4 | AO21: 3 | AR21: 23.77564286 | AS21: 0.3170085714
A22: 2224560 | B22: 8 | C22: Ulster | D22: 40 - Town | E22: 40 | F22: SILVER HOLLOW RD | G22: STONY CLOVE CREEK | H22: 183 | I22: 4.91 | J22: 1 | K22: 1985 | L22: 2140 | M22: 5.42 | N22: N | O22: cyclical | P22: 0 | Q22: 5 | R22: N | S22: 03 | T22: E | U22: 0.09 | V22: 6 | W22: Fair | X22: 5.571 | Y22: 2019-04-22 | Z22: 5.571 | AA22: 09 | AB22: 6 | AC22: 6 | AD22: 3.928571429 | AE22: 7.5075 | AF22: 6.105 | AG22: N | AH22: 0 | AI22: 2.842 | AJ22: 1.981 | AK22: 0.775 | AL22: 0 | AM22: 0 | AN22: 4 | AO22: 1 | AR22: 13.52657143 | AS22: 0.1803542857
A23: 2224570 | B23: 8 | C23: Ulster | D23: 40 - Town | E23: 40 | F23: BROAD ST HLW ROAD | G23: BROAD ST HOLLW BK | H23: 187 | I23: 4.91 | J23: 99 | K23: 1987 | L23: 1375 | M23: 5.607 | N23: N | O23: cyclical | P23: 0 | Q23: 4 | R23: N | S23: 09 | T23: 1 | U23: 0.07 | V23: 5 | W23: Fair | X23: 5.75 | Y23: 2019-04-01 | Z23: 5.75 | AA23: 09 | AB23: 5 | AC23: 5 | AD23: 7.857142857 | AE23: 6.16 | AF23: 17.16 | AG23: N | AH23: 0 | AI23: 2.94 | AJ23: 1.981 | AK23: 13.5 | AL23: 0 | AM23: 0 | AN23: 3 | AR23: 29.27814286 | AS23: 0.3903752381
A24: 2224600 | B24: 8 | C24: Ulster | D24: 40 - Town | E24: 40 | F24: FAWN HILL ROAD | G24: WOODLAND CREEK | H24: 32 | I24: 4.91 | J24: 99 | K24: 1988 | L24: 1520 | M24: 3.526 | N24: Y | O24: majorrehab | P24: 15 | Q24: 4 | R24: N | S24: 09 | T24: 1 | U24: 0.521 | V24: 4 | W24: Poor | X24: 3.86 | Y24: 2019-08-20 | Z24: 3.86 | AA24: 09 | AB24: 4 | AC24: 4 | AD24: 11.78571429 | AE24: 22.7425 | AF24: 24.75 | AG24: Y | AH24: 5 | AI24: 0.812 | AJ24: 1.981 | AK24: 13.5 | AL24: 2.945 | AM24: 0 | AN24: 3 | AP24: 15 | AR24: 39.02371429 | AS24: 0.5203161905
A25: 2224620 | B25: 8 | C25: Ulster | D25: 40 - Town | E25: 40 | F25: EAGLE MOUNTAIN RD | G25: ESOPUS CREEK | H25: 2 | I25: 4.91 | J25: 99 | K25: 1903 | L25: 992 | M25: 5.981 | N25: N | O25: cyclical | P25: 20 | Q25: 4 | R25: N | S25: 09 | T25: 1 | U25: 0.117 | V25: 5 | W25: Fair | X25: 5.577 | Y25: 2018-08-27 | Z25: 5.577 | AA25: 09 | AB25: 5 | AC25: 5 | AD25: 7.857142857 | AE25: 7.3975 | AF25: 17.16 | AG25: N | AH25: 0 | AI25: 0.126 | AJ25: 1.981 | AK25: 13.5 | AL25: 1.325 | AM25: 0 | AN25: 3 | AP25: 20 | AR25: 27.78914286 | AS25: 0.3705219048
A26: 2224650 | B26: 8 | C26: Ulster | D26: 40 - Town | E26: 40 | F26: CHURCH ROAD | G26: TRIB ESOPUS CREEK | H26: 8 | I26: 4.91 | J26: 10 | K26: 1998 | L26: 676 | M26: 3.667 | N26: Y | O26: majorrehab | P26: 0 | Q26: 4 | R26: N | S26: 09 | T26: 1 | U26: 0.392 | V26: 3 | W26: Poor | X26: 3.429 | Y26: 2019-06-06 | Z26: 3.429 | AA26: 09 | AB26: 3 | AC26: 3 | AD26: 15.71428571 | AE26: 25.135 | AF26: 27.06 | AG26: Y | AH26: 5 | AI26: 0.259 | AJ26: 1.981 | AK26: 10.5375 | AL26: 0 | AM26: 0 | AN26: 3 | AO26: 10 | AR26: 36.49178571 | AS26: 0.4865571429
A27: 2224670 | B27: 8 | C27: Ulster | D27: 40 - Town | E27: 40 | F27: MOUNTAIN ROAD | G27: BEAVER BROOK | H27: 192 | I27: 4.91 | J27: 2 | K27: 1995 | L27: 800 | M27: 6.667 | N27: N | O27: cyclical | P27: 0 | Q27: 4 | R27: N | S27: 27 | T27: B | U27: 0.037 | V27: 7 | W27: Good | X27: 5.636 | Y27: 2018-04-02 | Z27: 5.636 | AA27: 09 | AB27: 5 | AC27: 5 | AD27: 7.857142857 | AE27: 6.9575 | AF27: 17.16 | AG27: N | AH27: 0 | AI27: 3.038 | AJ27: 1.981 | AK27: 4.8125 | AL27: 0 | AM27: 0 | AN27: 3 | AO27: 2 | AR27: 20.68864286 | AS27: 0.2758485714
A28: 2224680 | B28: 8 | C28: Ulster | D28: 40 - Town | E28: 40 | F28: RED MILLS ROAD | G28: DWAAR KILL | H28: 1565 | I28: 4.91 | J28: 2 | K28: 1963 | L28: 800 | M28: 4.471 | N28: N | O28: minorrehab | P28: 0 | Q28: 4 | R28: N | S28: 09 | T28: 1 | U28: 0.1 | V28: 5 | W28: Fair | X28: 4.239 | Y28: 2018-04-09 | Z28: 4.239 | AA28: 09 | AB28: 5 | AC28: 5 | AD28: 7.857142857 | AE28: 19.1125 | AF28: 17.16 | AG28: N | AH28: 0 | AI28: 5.915 | AJ28: 1.981 | AK28: 4.8125 | AL28: 0 | AM28: 0 | AN28: 3 | AO28: 2 | AR28: 23.56564286 | AS28: 0.3142085714
A29: 2224690 | B29: 8 | C29: Ulster | D29: 40 - Town | E29: 40 | F29: JOHNS ESTATE ROAD | G29: VERKEERDER KILL | H29: 579 | I29: 4.91 | J29: 1 | K29: 2004 | L29: 1140 | M29: 5.815 | N29: N | O29: cyclical | P29: 0 | Q29: 4 | R29: N | S29: 27 | T29: B | U29: 0.037 | V29: 6 | W29: Fair | X29: 5.545 | Y29: 2018-04-04 | Z29: 5.545 | AA29: 09 | AB29: 5 | AC29: 5 | AD29: 7.857142857 | AE29: 7.865 | AF29: 17.16 | AG29: N | AH29: 0 | AI29: 4.97 | AJ29: 1.981 | AK29: 0.775 | AL29: 0 | AM29: 0 | AN29: 3 | AO29: 1 | AR29: 18.58314286 | AS29: 0.2477752381
A30: 2224700 | B30: 8 | C30: Ulster | D30: 40 - Town | E30: 40 | F30: ULSTERVILLE ROAD | G30: VERKEERDER KILL | H30: 1419 | I30: 4.91 | J30: 2 | K30: 1989 | L30: 1144 | M30: 4.982 | N30: N | O30: cyclical | P30: 0 | Q30: 2 | R30: N | S30: 36 | T30: 1 | U30: 0.067 | V30: 6 | W30: Fair | X30: 4.912 | Y30: 2018-05-18 | Z30: 4.912 | AA30: 09 | AB30: 5 | AC30: 5 | AD30: 7.857142857 | AE30: 12.7325 | AF30: 17.16 | AG30: N | AH30: 0 | AI30: 5.719 | AJ30: 1.981 | AK30: 4.8125 | AL30: 0 | AM30: 0 | AN30: 1 | AO30: 2 | AR30: 21.36964286 | AS30: 0.2849285714
A31: 2224720 | B31: 8 | C31: Ulster | D31: 40 - Town | E31: 40 | F31: JANSEN ROAD | G31: BEAVER BROOK | H31: 653 | I31: 4.91 | J31: 1 | K31: 1988 | L31: 995 | M31: 4.719 | N31: N | O31: majorrehab | P31: 0 | Q31: 4 | R31: N | S31: 09 | T31: 1 | U31: 0.21 | V31: 5 | W31: Fair | X31: 4.538 | Y31: 2018-04-09 | Z31: 4.538 | AA31: 09 | AB31: 5 | AC31: 5 | AD31: 7.857142857 | AE31: 16.61 | AF31: 17.16 | AG31: N | AH31: 0 | AI31: 5.033 | AJ31: 1.981 | AK31: 0.775 | AL31: 0 | AM31: 0 | AN31: 3 | AO31: 1 | AR31: 18.64614286 | AS31: 0.2486152381
A32: 2224730 | B32: 8 | C32: Ulster | D32: 40 - Town | E32: 40 | F32: BATES LANE | G32: DWAAR KILL | H32: 215 | I32: 4.91 | J32: 3 | K32: 1992 | L32: 1254 | M32: 5.656 | N32: N | O32: cyclical | P32: 0 | Q32: 3 | R32: N | S32: 36 | T32: 1 | U32: 0.049 | V32: 6 | W32: Fair | X32: 5.143 | Y32: 2018-04-12 | Z32: 5.143 | AA32: 09 | AB32: 5 | AC32: 5 | AD32: 7.857142857 | AE32: 10.6975 | AF32: 17.16 | AG32: N | AH32: 0 | AI32: 3.171 | AJ32: 1.981 | AK32: 6.4375 | AL32: 0 | AM32: 0 | AN32: 2 | AO32: 3 | AR32: 21.44664286 | AS32: 0.2859552381
A33: 2224760 | B33: 8 | C33: Ulster | D33: 40 - Town | E33: 40 | F33: OLD ROUTE 209 | G33: SANDBURG CREEK | H33: 500 | I33: 4.91 | J33: 1 | K33: 1988 | L33: 2144 | M33: 5.05 | N33: N | O33: cyclical | P33: 0 | Q33: 5 | R33: N | S33: 09 | T33: 1 | U33: 0.022 | V33: 6 | W33: Fair | X33: 5.55 | Y33: 2019-04-23 | Z33: 5.55 | AA33: 09 | AB33: 5 | AC33: 5 | AD33: 7.857142857 | AE33: 7.7275 | AF33: 17.16 | AG33: N | AH33: 0 | AI33: 4.704 | AJ33: 1.981 | AK33: 0.775 | AL33: 0 | AM33: 0 | AN33: 4 | AO33: 1 | AR33: 19.31714286 | AS33: 0.2575619048
A34: 2224790 | B34: 8 | C34: Ulster | D34: 40 - Town | E34: 40 | F34: PORT BEN ROAD | G34: RONDOUT CREEK | H34: 318 | I34: 3.92 | J34: 2 | K34: 1915 | L34: 3700 | M34: 3.78 | N34: Y | O34: replace | P34: 4 | Q34: 4 | R34: Y | S34: 18 | T34: 1 | U34: 0.525 | V34: 4 | W34: Poor | X34: 3.667 | Y34: 2019-09-06 | Z34: 3.667 | AA34: 19 | AB34: 3 | AC34: 3 | AD34: 15.71428571 | AE34: 24.1175 | AF34: 27.06 | AG34: Y | AH34: 5 | AI34: 3.92 | AJ34: 0.959 | AK34: 4.8125 | AL34: 4.56 | AM34: 5 | AN34: 3 | AO34: 2 | AP34: 4 | AR34: 42.96578571 | AS34: 0.5728771429
A35: 2224800 | B35: 8 | C35: Ulster | D35: 40 - Town | E35: 40 | F35: COLD BROOK ROAD | G35: LITTLE BEAVER KL | H35: 379 | I35: 4.91 | J35: 7 | K35: 1930 | L35: 860 | M35: 4.368 | N35: N | O35: minorrehab | P35: 0 | Q35: 4 | R35: N | S35: 09 | T35: 1 | U35: 0.119 | V35: 5 | W35: Fair | X35: 4.481 | Y35: 2018-09-27 | Z35: 4.481 | AA35: 09 | AB35: 5 | AC35: 5 | AD35: =27.5-(AC35*(27.5/7)) -> 7.857142857 | AE35: 17.05 | AF35: 17.16 | AG35: N | AH35: 0 | AI35: 4.116 | AJ35: 1.981 | AK35: 9.3 | AL35: 0 | AM35: 0 | AN35: 3 | AO35: 7 | AR35: 26.25414286 | AS35: 0.3500552381
A36: 2224830 | B36: 8 | C36: Ulster | D36: 40 - Town | E36: 40 | F36: CHESTNUT HILL RD | G36: SAW KILL | H36: 253 | I36: 4.91 | J36: 1 | K36: 1979 | L36: 1053 | M36: 6.397 | N36: N | O36: cyclical | P36: 0 | Q36: 4 | R36: N | S36: 09 | T36: 1 | U36: 0.02 | V36: 6 | W36: Fair | X36: 6.5 | Y36: 2019-03-12 | Z36: 6.5 | AA36: 09 | AB36: 6 | AC36: 6 | AD36: 3.928571429 | AE36: 2.0625 | AF36: 6.105 | AG36: N | AH36: 0 | AI36: 3.528 | AJ36: 1.981 | AK36: 0.775 | AL36: 0 | AM36: 0 | AN36: 3 | AO36: 1 | AR36: 13.21257143 | AS36: 0.176167619
A37: 2224840 | B37: 8 | C37: Ulster | D37: 40 - Town | E37: 40 | F37: YERRY HILL ROAD | G37: SAW KILL | H37: 385 | I37: 4.91 | J37: 3 | K37: 1996 | L37: 2444 | M37: 5.689 | N37: N | O37: cyclical | P37: 0 | Q37: 4 | R37: Y | S37: 19 | T37: 2 | U37: 0.104 | V37: 6 | W37: Fair | X37: 5.036 | Y37: 2018-06-21 | Z37: 5.036 | AA37: 09 | AB37: 6 | AC37: 6 | AD37: 3.928571429 | AE37: 11.605 | AF37: 6.105 | AG37: N | AH37: 0 | AI37: 4.249 | AJ37: 1.981 | AK37: 6.4375 | AL37: 0 | AM37: 5 | AN37: 3 | AO37: 3 | AR37: 24.59607143 | AS37: 0.327947619
A38: 2224860 | B38: 8 | C38: Ulster | D38: 40 - Town | E38: 40 | F38: MCDANIEL ROAD | G38: SAW KILL | H38: 205 | I38: 4.91 | J38: 7 | K38: 2016 | L38: 1080 | M38: 3.98 | N38: Y | O38: majorrehab | Q38: 4 | R38: N | S38: 09 | T38: 1 | U38: 0.372 | V38: 7 | W38: Good | X38: 6.525 | Y38: 2019-05-28 | Z38: 6.525 | AA38: 09 | AB38: 6 | AC38: 6 | AD38: 3.928571429 | AE38: 1.9525 | AF38: 6.105 | AG38: N | AH38: 0 | AI38: 3.136 | AJ38: 1.981 | AK38: 9.3 | AL38: 0 | AM38: 0 | AN38: 3 | AO38: 7 | AR38: 21.34557143 | AS38: 0.284607619
A39: 2224870 | B39: 8 | C39: Ulster | D39: 40 - Town | E39: 40 | F39: EIGHMEY ROAD | G39: SILVER HOLLOW | H39: 172 | I39: 4.91 | J39: 1 | K39: 1934 | L39: 690 | M39: 5.766 | N39: N | O39: majorrehab | P39: 0 | Q39: 5 | R39: N | S39: 01 | T39: E | U39: 0.189 | V39: 6 | W39: Fair | X39: 5.714 | Y39: 2018-10-11 | Z39: 5.714 | AA39: 09 | AB39: 6 | AC39: 6 | AD39: 3.928571429 | AE39: 6.6 | AF39: 6.105 | AG39: N | AH39: 0 | AI39: 2.779 | AJ39: 1.981 | AK39: 0.775 | AL39: 0 | AM39: 0 | AN39: 4 | AO39: 1 | AR39: 13.46357143 | AS39: 0.1795142857
A40: 2224880 | B40: 8 | C40: Ulster | D40: 40 - Town | E40: 40 | F40: MINK HOLLOW ROAD | G40: BEAVER KILL | H40: 232 | I40: 4.91 | J40: 99 | K40: 1920 | L40: 885 | M40: 4.275 | N40: Y | O40: majorrehab | P40: 15 | Q40: 3 | R40: N | S40: 09 | T40: 1 | U40: 0.445 | V40: 4 | W40: Poor | X40: 3.961 | Y40: 2019-04-03 | Z40: 3.961 | AA40: 09 | AB40: 3 | AC40: 3 | AD40: 15.71428571 | AE40: 21.3675 | AF40: 27.06 | AG40: Y | AH40: 5 | AI40: 3.465 | AJ40: 1.981 | AK40: 13.5 | AL40: 2.945 | AM40: 0 | AN40: 2 | AP40: 15 | AR40: 44.60528571 | AS40: 0.5947371429
A41: 2262930 | B41: 8 | C41: Ulster | D41: 40 - Town | E41: 40 | F41: MILLIE EDWARDS RD | G41: ALDER CREEK | H41: 8 | I41: 4.91 | J41: 99 | K41: 1994 | L41: 432 | M41: 6 | N41: N | O41: cyclical | P41: 0 | Q41: 4 | R41: N | S41: 27 | T41: B | U41: 0.082 | V41: 5 | W41: Fair | X41: 6 | Y41: 2018-08-24 | Z41: 6 | AA41: 09 | AB41: 5 | AC41: 5 | AD41: 7.857142857 | AE41: 4.895 | AF41: 17.16 | AG41: N | AH41: 0 | AI41: 0.259 | AJ41: 1.981 | AK41: 13.5 | AL41: 0 | AM41: 0 | AN41: 3 | AR41: 26.59714286 | AS41: 0.3546285714
A42: 2262960 | B42: 8 | C42: Ulster | D42: 40 - Town | E42: 40 | F42: VAN HOAGLAND ROAD | G42: MINK HOLLOW CREEK | H42: 10 | I42: 4.91 | J42: 99 | K42: 2012 | L42: 500 | M42: 6.935 | N42: N | O42: cyclical | P42: 0 | Q42: 4 | R42: Y | S42: 21 | T42: 1 | U42: 0.152 | V42: 8 | W42: Good | X42: 6.93 | Y42: 2018-06-12 | Z42: 6.93 | AA42: 09 | AB42: 6 | AC42: 6 | AD42: 3.928571429 | AE42: 0.4675 | AF42: 6.105 | AG42: N | AH42: 0 | AI42: 0.357 | AJ42: 1.981 | AK42: 13.5 | AL42: 0 | AM42: 5 | AN42: 3 | AR42: 27.76657143 | AS42: 0.3702209524
A43: 2262970 | B43: 8 | C43: Ulster | D43: 41 - Village | E43: 41 | F43: HICKORY STREET | G43: BEER KILL | H43: 430 | I43: 3.92 | J43: 1 | K43: 1970 | L43: 2315 | M43: 6.304 | N43: N | O43: cyclical | Q43: 4 | R43: N | S43: 13 | T43: 1 | U43: 0.021 | V43: 6 | W43: Fair | X43: 6.218 | Y43: 2018-09-12 | Z43: 6.218 | AA43: 19 | AB43: 6 | AC43: 6 | AD43: 3.928571429 | AE43: 3.5475 | AF43: 6.105 | AG43: N | AH43: 0 | AI43: 4.48 | AJ43: 0.959 | AK43: 0.775 | AL43: 0 | AM43: 0 | AN43: 3 | AO43: 1 | AR43: 13.14257143 | AS43: 0.1752342857
A44: 2262980 | B44: 8 | C44: Ulster | D44: 41 - Village | E44: 41 | F44: CLINTON AVENUE | G44: NORTH GULLY | H44: 1090 | I44: 3.92 | J44: 1 | K44: 1966 | L44: 1300 | M44: 3.825 | N44: Y | O44: majorrehab | P44: 0 | Q44: 3 | R44: N | S44: 09 | T44: 1 | U44: 0.427 | V44: 4 | W44: Poor | X44: 3.81 | Y44: 2018-04-17 | Z44: 3.81 | AA44: 19 | AB44: 4 | AC44: 4 | AD44: 11.78571429 | AE44: 22.8525 | AF44: 24.75 | AG44: Y | AH44: 5 | AI44: 5.621 | AJ44: 0.959 | AK44: 0.775 | AL44: 0 | AM44: 0 | AN44: 2 | AO44: 1 | AR44: 26.14071429 | AS44: 0.3485428571
A45: 2264100 | B45: 8 | C45: Ulster | D45: 40 - Town | E45: 40 | F45: BLACK CREEK ROAD | G45: BLACK CREEK | H45: 148 | I45: 4.91 | J45: 1 | K45: 1925 | L45: 1600 | M45: 3.042 | N45: N | O45: replace | P45: 0 | Q45: 3 | R45: N | S45: 25 | T45: B | U45: 0.458 | V45: 5 | W45: Fair | X45: 3.579 | Y45: 2018-08-14 | Z45: 3.579 | AA45: 09 | AB45: 4 | AC45: 4 | AD45: 11.78571429 | AE45: 24.5575 | AF45: 24.75 | AG45: N | AH45: 0 | AI45: 2.583 | AJ45: 1.981 | AK45: 0.775 | AL45: 0 | AM45: 0 | AN45: 2 | AO45: 1 | AR45: 19.12471429 | AS45: 0.2549961905
A46: 2264110 | B46: 8 | C46: Ulster | D46: 30 - County | E46: 30 | F46: CONNELLY ROAD | G46: PLANTASIA CREEK | H46: 1519 | I46: 3.92 | J46: 1 | K46: 1983 | L46: 625 | M46: 5.364 | N46: N | O46: cyclical | P46: 0 | Q46: 5 | R46: N | S46: 01 | T46: B | U46: 0.03 | V46: 5 | W46: Fair | X46: 5.455 | Y46: 2018-10-01 | Z46: 5.455 | AA46: 19 | AB46: 5 | AC46: 5 | AD46: 7.857142857 | AE46: 9.2125 | AF46: 17.16 | AG46: N | AH46: 0 | AI46: 5.817 | AJ46: 0.959 | AK46: 0.775 | AL46: 0 | AM46: 0 | AN46: 4 | AO46: 1 | AR46: 19.40814286 | AS46: 0.2587752381
A47: 2264130 | B47: 8 | C47: Ulster | D47: 40 - Town | E47: 40 | F47: AUMICK ROAD | G47: PALMAGHATT KILL | H47: 174 | I47: 4.91 | J47: 1 | K47: 1987 | L47: 853 | M47: 5.07 | N47: N | O47: maintproject | P47: 0 | Q47: 5 | R47: N | S47: 09 | T47: 1 | U47: 0.02 | V47: 5 | W47: Fair | X47: 4.684 | Y47: 2018-05-16 | Z47: 4.684 | AA47: 09 | AB47: 4 | AC47: 4 | AD47: 11.78571429 | AE47: 14.905 | AF47: 24.75 | AG47: N | AH47: 0 | AI47: 2.807 | AJ47: 1.981 | AK47: 0.775 | AL47: 0 | AM47: 0 | AN47: 4 | AO47: 1 | AR47: 21.34871429 | AS47: 0.2846495238
A48: 2264170 | B48: 8 | C48: Ulster | D48: 40 - Town | E48: 40 | F48: STONEY CLOVE ROAD | G48: STONY CLOVE CREEK | H48: 64 | I48: 4.91 | J48: 99 | K48: 1965 | L48: 700 | M48: 3.667 | N48: N | O48: replace | P48: 0 | Q48: 4 | R48: N | S48: 41 | T48: 1 | U48: 0.426 | X48: 3 | Y48: 2018-06-06 | Z48: 3 | AA48: 09 | AB48: 4 | AC48: 4 | AD48: 11.78571429 | AE48: 26.3725 | AF48: 24.75 | AH48: 5 | AI48: 1.47 | AJ48: 1.981 | AK48: 13.5 | AL48: 0 | AM48: 0 | AN48: 3 | AR48: 36.73671429 | AS48: 0.4898228571
A49: 2264230 | B49: 8 | C49: Ulster | D49: 40 - Town | E49: 40 | F49: RIVER ROAD | G49: TWAALFSKILL CREEK | H49: 221 | I49: 3.92 | J49: 1 | K49: 2006 | L49: 700 | M49: 6.074 | N49: N | O49: cyclical | P49: 0 | Q49: 4 | R49: N | S49: 27 | T49: B | U49: 0.035 | V49: 7 | W49: Good | X49: 6.273 | Y49: 2018-12-05 | Z49: 6.273 | AA49: 19 | AB49: 6 | AC49: 6 | AD49: 3.928571429 | AE49: 3.08 | AF49: 6.105 | AG49: =IF(W49="Poor", "Y", "N") -> N | AH49: 0 | AI49: 3.332 | AJ49: 0.959 | AK49: 0.775 | AL49: 0 | AM49: 0 | AN49: 3 | AO49: 1 | AR49: 11.99457143 | AS49: 0.159927619
A50: 2264250 | B50: 8 | C50: Ulster | D50: 40 - Town | E50: 40 | F50: BLACK CREEK ROAD | G50: SWARTE KILL | I50: 1 | J50: 3 | K50: 2002 | L50: 700 | M50: 6.852 | N50: N | O50: cyclical | P50: 0 | Q50: 5 | R50: N | S50: 42 | T50: 7 | U50: 0.071 | V50: 9 | W50: Good | X50: 7 | Y50: 2019-08-30 | Z50: 7 | AA50: 09 | AB50: 7 | AC50: 7 | AD50: 0 | AE50: 0.3575 | AF50: 1.6225 | AG50: N | AH50: 0 | AJ50: 0.259 | AK50: 6.4375 | AL50: 0 | AM50: 0 | AN50: 4 | AO50: 3 | AR50: 10.6965 | AS50: 0.14262
A51: 2264260 | B51: 8 | C51: Ulster | D51: 40 - Town | E51: 40 | F51: HARDENBURG ROAD | G51: SWARTE KILL | H51: 324 | I51: 4.91 | J51: 2 | K51: 1935 | L51: 736 | M51: 5.611 | N51: N | O51: cyclical | P51: 0 | Q51: 4 | R51: N | S51: 27 | T51: B | U51: 0.037 | V51: 7 | W51: Good | X51: 5.393 | Y51: 2019-10-25 | Z51: 5.393 | AA51: 19 | AB51: 6 | AC51: 6 | AD51: 3.928571429 | AE51: 9.68 | AF51: 6.105 | AG51: N | AH51: 0 | AI51: 3.99 | AJ51: 1.981 | AK51: 4.8125 | AL51: 0 | AM51: 0 | AN51: 3 | AO51: 2 | AR51: 17.71207143 | AS51: 0.2361609524
A52: 2264270 | B52: 8 | C52: Ulster | D52: 40 - Town | E52: 40 | F52: LAUREN TICE ROAD | G52: SAWYER KILL | H52: 318 | I52: 4.91 | J52: 4 | K52: 1948 | L52: 2300 | M52: 5.913 | N52: N | O52: cyclical | P52: 0 | Q52: 4 | R52: N | S52: 43 | T52: B | U52: 0.046 | V52: 5 | W52: Fair | X52: 6.444 | Y52: 2018-06-21 | Z52: 6.444 | AA52: 09 | AB52: 4 | AC52: 4 | AD52: 11.78571429 | AE52: 2.2825 | AF52: 24.75 | AG52: N | AH52: 0 | AI52: 3.92 | AJ52: 1.981 | AK52: 7.475 | AL52: 0 | AM52: 0 | AN52: 3 | AO52: 4 | AR52: 28.16171429 | AS52: 0.3754895238
A53: 2264280 | B53: 8 | C53: Ulster | D53: 40 - Town | E53: 40 | F53: ROSE MOUNTAIN RD. | G53: ROSE MOUNTAIN ST | H53: 70 | I53: 4.91 | J53: 1 | K53: 1958 | L53: 600 | M53: 5.813 | N53: N | O53: cyclical | P53: 0 | Q53: 5 | R53: N | S53: 40 | T53: B | U53: 0.023 | V53: 6 | W53: Fair | X53: 3.909 | Y53: 2018-08-06 | Z53: 3.909 | AA53: 09 | AB53: 5 | AC53: 5 | AD53: 7.857142857 | AE53: 21.835 | AF53: 17.16 | AG53: N | AH53: 0 | AI53: 1.666 | AJ53: 1.981 | AK53: 0.775 | AL53: 0 | AM53: 0 | AN53: 4 | AO53: 1 | AR53: 16.27914286 | AS53: 0.2170552381
A54: 2264390 | B54: 8 | C54: Ulster | D54: 40 - Town | E54: 40 | F54: BIRCH CREEK ROAD | G54: BIRCH CREEK | H54: 94 | I54: 4.91 | J54: 1 | K54: 1991 | L54: 500 | M54: 2.333 | N54: N | O54: replace | P54: 0 | Q54: 4 | R54: N | S54: 26 | T54: 7 | U54: 0.519 | V54: 4 | W54: Poor | X54: 1.667 | Y54: 2019-04-22 | Z54: 1.667 | AA54: 09 | AB54: 3 | AC54: 3 | AD54: 15.71428571 | AE54: 26.5925 | AF54: 27.06 | AG54: Y | AH54: 5 | AI54: 2.191 | AJ54: 1.981 | AK54: 0.775 | AL54: 0 | AM54: 0 | AN54: 3 | AO54: 1 | AR54: 28.66128571 | AS54: 0.3821504762
A55: 2264400 | B55: 8 | C55: Ulster | D55: 40 - Town | E55: 40 | F55: HERDMAN ROAD | G55: FOX HOLLOW BROOK | H55: 25 | I55: 4.91 | J55: 99 | K55: 2005 | L55: 480 | M55: 6.667 | N55: N | O55: cyclical | Q55: 4 | R55: N | S55: 02 | T55: E | U55: 0.187 | V55: 7 | W55: Good | X55: 6.66 | Y55: 2018-06-21 | Z55: 6.66 | AA55: 09 | AB55: 6 | AC55: 6 | AD55: 3.928571429 | AE55: 1.155 | AF55: 6.105 | AG55: N | AH55: 0 | AI55: 0.518 | AJ55: 1.981 | AK55: 13.5 | AL55: 0 | AM55: 0 | AN55: 3 | AR55: 22.92757143 | AS55: 0.3057009524
A56: 2264410 | B56: 8 | C56: Ulster | D56: 40 - Town | E56: 40 | F56: ERICSON ROAD | G56: DRY BROOK | H56: 8 | I56: 0 | J56: 99 | K56: 1890 | L56: 600 | M56: 5.885 | N56: N | O56: cyclical | P56: 0 | Q56: 5 | R56: N | S56: 09 | T56: 2 | U56: 0.062 | V56: 6 | W56: Fair | X56: 6.075 | Y56: 2018-10-11 | Z56: 6.075 | AA56: 09 | AB56: 5 | AC56: 5 | AD56: 7.857142857 | AE56: 3.9875 | AF56: 17.16 | AG56: N | AH56: 0 | AI56: 0.259 | AJ56: 0 | AK56: 13.5 | AL56: 0 | AM56: 0 | AN56: 4 | AR56: 25.61614286 | AS56: 0.3415485714
A57: 2264430 | B57: 8 | C57: Ulster | D57: 40 - Town | E57: 40 | F57: VALLI ROAD | G57: BLACK CREEK | H57: 32 | I57: 4.91 | J57: 99 | K57: 1954 | L57: 500 | M57: 4.294 | N57: Y | O57: majorrehab | P57: 8 | Q57: 3 | R57: N | S57: 09 | T57: 1 | U57: 0.462 | V57: 4 | W57: Poor | X57: 4.216 | Y57: 2019-06-13 | Z57: 4.216 | AA57: 09 | AB57: 3 | AC57: 3 | AD57: 15.71428571 | AE57: 19.5525 | AF57: 27.06 | AG57: Y | AH57: 5 | AI57: 0.812 | AJ57: 1.981 | AK57: 13.5 | AL57: 4.415 | AM57: 0 | AN57: 2 | AP57: 8 | AR57: 43.42228571 | AS57: 0.5789638095
A58: 2264440 | B58: 8 | C58: Ulster | D58: 40 - Town | E58: 40 | F58: GEIGER ROAD | G58: BEER KILL | H58: 288 | I58: 4.91 | J58: 3 | K58: 1979 | L58: 1100 | M58: 5.828 | N58: N | O58: cyclical | P58: 0 | Q58: 5 | R58: N | S58: 09 | T58: 1 | U58: 0.024 | V58: 6 | W58: Fair | X58: 5.387 | Y58: 2019-04-19 | Z58: 5.387 | AA58: 09 | AB58: 5 | AC58: 5 | AD58: 7.857142857 | AE58: 9.79 | AF58: 17.16 | AG58: N | AH58: 0 | AI58: 3.822 | AJ58: 1.981 | AK58: 6.4375 | AL58: 0 | AM58: 0 | AN58: 4 | AO58: 3 | AR58: 24.09764286 | AS58: 0.3213019048
A59: 2264450 | B59: 8 | C59: Ulster | D59: 40 - Town | E59: 40 | F59: BARBARA ROAD | G59: W BR BEER KILL | I59: 10 | J59: 99 | K59: 1965 | L59: 1200 | M59: 3.813 | N59: Y | O59: majorrehab | P59: 0 | Q59: 4 | R59: N | S59: 10 | T59: 1 | U59: 0.465 | V59: 5 | W59: Fair | X59: 3.864 | Y59: 2019-11-01 | Z59: 3.864 | AA59: 19 | AB59: 4 | AC59: 4 | AD59: 11.78571429 | AE59: 22.5225 | AF59: 24.75 | AG59: N | AH59: 0 | AJ59: 6.615 | AK59: 13.5 | AL59: 0 | AM59: 0 | AN59: 3 | AR59: 34.90071429 | AS59: 0.4653428571
A60: 2264460 | B60: 8 | C60: Ulster | D60: 40 - Town | E60: 40 | F60: FOORDEMOOR ROAD | G60: TRIB ROUNDOUT CRK | H60: 2528 | I60: 4.85 | J60: 1 | K60: 1976 | L60: 1000 | M60: 6.017 | N60: N | O60: cyclical | P60: 0 | Q60: 5 | R60: N | S60: 09 | T60: 1 | U60: 0.028 | V60: 6 | W60: Fair | X60: 5.755 | Y60: 2018-08-29 | Z60: 5.755 | AA60: 09 | AB60: 5 | AC60: 5 | AD60: 7.857142857 | AE60: 6.05 | AF60: 17.16 | AG60: N | AH60: 0 | AI60: 6.377 | AJ60: 1.806 | AK60: 0.775 | AL60: 0 | AM60: 0 | AN60: 4 | AO60: 1 | AR60: 20.81514286 | AS60: 0.2775352381
A61: 2264490 | B61: 8 | C61: Ulster | D61: 40 - Town | E61: 40 | F61: ABAND MILL BK RD | G61: MILL BROOK | H61: 1 | I61: 10 | J61: 0 | K61: 1898 | L61: 1000 | M61: 0 | O61: N/A | P61: 99 | S61: 18 | T61: 8 | X61: 0 | Y61: 1985-05-13 | Z61: 0 | AB61: 1 | AC61: 1 | AD61: 23.57142857 | AF61: =IF(AC61>0,(27.5-(_xlfn.PERCENTRANK.INC(AC:AC,AC61))/(1/27.5)),"") -> 27.17 | AI61: 0 | AJ61: 6.615 | AK61: 0 | AL61: 0 | AM61: 0 | AN61: 0 | AO61: 0 | AR61: 30.18642857 | AS61: 0.4024857143
A62: 2264500 | B62: 8 | C62: Ulster | D62: 40 - Town | E62: 40 | F62: OLO FOORDMORE RD | G62: TRIB TO RNDOUT CK | H62: 2528 | I62: 4.85 | J62: 0 | K62: 1929 | L62: 400 | M62: 0 | O62: N/A | P62: 99 | S62: 12 | T62: 1 | X62: 0 | Y62: 1979-07-17 | Z62: 0 | AA62: 09 | AB62: 3 | AC62: 3 | AD62: 15.71428571 | AF62: 27.06 | AI62: 6.377 | AJ62: 1.806 | AK62: 0 | AL62: 0 | AM62: 0 | AN62: 0 | AO62: 0 | AR62: 23.89728571 | AS62: 0.3186304762
A63: 2264510 | B63: 8 | C63: Ulster | D63: 40 - Town | E63: 40 | F63: LAWRENCE ROAD | G63: STONY KILL | H63: 29 | I63: 4.91 | J63: 1 | K63: 1929 | L63: 500 | M63: 3.293 | N63: Y | O63: majorrehab | P63: 3 | Q63: 4 | R63: N | S63: 12 | T63: 1 | U63: 0.503 | V63: 4 | W63: Poor | X63: 3.609 | Y63: 2019-05-29 | Z63: 3.609 | AA63: 09 | AB63: 3 | AC63: 3 | AD63: 15.71428571 | AE63: 24.3375 | AF63: 27.06 | AG63: Y | AH63: 5 | AI63: 0.784 | AJ63: 1.981 | AK63: 0.775 | AL63: 4.855 | AM63: 0 | AN63: 3 | AO63: 1 | AP63: 3 | AQ63: =1/5 -> 0.2 | AR63: 32.10928571 | AS63: 0.4281238095
A64: 2264520 | B64: 8 | C64: Ulster | D64: 40 - Town | E64: 40 | F64: OLD ROUTE 52 | G64: GULLY SANBURG CK | H64: 1 | I64: 10 | J64: 0 | K64: 1915 | L64: 730 | M64: 0 | O64: N/A | P64: 99 | Q64: 6 | S64: 12 | T64: 1 | X64: 0 | Y64: 2000-05-30 | Z64: 0 | AB64: 4 | AC64: 4 | AD64: 11.78571429 | AF64: 24.75 | AI64: 0 | AJ64: 6.615 | AK64: 0 | AL64: 0 | AM64: 0 | AN64: 5 | AO64: 0 | AR64: 23.40071429 | AS64: 0.3120095238
A65: 2264530 | B65: 8 | C65: Ulster | D65: 40 - Town | E65: 40 | F65: ABAND CHRYTOWN RD | G65: MOMBACCUS CREEK | H65: 1 | I65: 10 | J65: 0 | K65: 1900 | L65: 500 | M65: 0 | O65: N/A | P65: 99 | S65: 19 | T65: 1 | X65: 0 | Y65: 1985-05-20 | Z65: 0 | AB65: 4 | AC65: 4 | AD65: 11.78571429 | AF65: 24.75 | AI65: 0 | AJ65: 6.615 | AK65: 0 | AL65: 0 | AM65: 0 | AN65: 0 | AO65: 0 | AR65: 18.40071429 | AS65: 0.2453428571
A66: 2264550 | B66: 8 | C66: Ulster | D66: 41 - Village | E66: 41 | F66: BECKLEY DRIVE | G66: FANTINE KILL | H66: 257 | I66: 3.92 | J66: 99 | K66: 1960 | L66: 702 | M66: 6.652 | N66: N | O66: cyclical | Q66: 5 | R66: N | S66: 27 | T66: B | U66: 0.085 | V66: 7 | W66: Good | X66: 6.556 | Y66: 2018-10-04 | Z66: 6.556 | AA66: 19 | AB66: 6 | AC66: 6 | AD66: 3.928571429 | AE66: 1.8425 | AF66: 6.105 | AG66: N | AH66: 0 | AI66: 3.563 | AJ66: 0.959 | AK66: 13.5 | AL66: 0 | AM66: 0 | AN66: 4 | AR66: 25.95057143 | AS66: 0.346007619
A67: 2267650 | B67: 8 | C67: Ulster | D67: 40 - Town | E67: 40 | F67: MAIN STREET | G67: CATHEDRAL GLEN | H67: 219 | I67: 4.91 | J67: 1 | K67: 1988 | L67: 1200 | M67: 4.659 | N67: N | O67: maintproject | P67: 0 | Q67: 4 | R67: N | S67: 44 | T67: 8 | U67: 0.092 | V67: 6 | W67: Fair | X67: 4.512 | Y67: 2018-05-07 | Z67: 4.512 | AA67: 09 | AB67: 5 | AC67: 5 | AD67: =27.5-(AC67*(27.5/7)) -> 7.857142857 | AE67: 16.83 | AF67: =IF(AC67>0,(27.5-(_xlfn.PERCENTRANK.INC(AC:AC,AC67))/(1/27.5)),"") -> 17.16 | AG67: N | AH67: =_xlfn.IFNA((IF(AG67="N",0,5)),"") -> 0 | AI67: =_xlfn.IFNA((_xlfn.PERCENTRANK.INC(H:H,H67))/(1/7),"") -> 3.269 | AJ67: =(_xlfn.PERCENTRANK.INC(I:I,I67))/(1/7) -> 1.981 | AK67: =IF(J67=99,13.5,(_xlfn.PERCENTRANK.INC(AO:AO,AO67))/(1/12.5)) -> 0.775 | AL67: =IF(OR(P67=0,P67>97),0,(5-(_xlfn.PERCENTRANK.EXC(AP:AP,AP67))/(1/5))) -> 0 | AM67: =IF(R67="Y",5,0) -> 0 | AN67: =IFERROR((Q67-1),0) -> 3 | AO67: =IF(J67=99,"",J67) -> 1 | AP67: =IF(OR(P67=0,P67>97),"",P67) ->  | AR67: =SUM(AN67,AM67,AL67,AK67,AJ67,AI67,AH67,AD67) -> 16.88214286 | AS67: 0.2250952381
A68: 2268750 | B68: 8 | C68: Ulster | D68: 40 - Town | E68: 40 | F68: ROSSNER BRIDGE RD | G68: BUSHNELLSVILLE CK | H68: 4 | I68: 4.91 | J68: 99 | K68: 1996 | L68: 454 | M68: 5.281 | N68: N | O68: cyclical | P68: 0 | Q68: 4 | R68: N | S68: 09 | T68: 2 | U68: 0.062 | V68: 6 | W68: Fair | X68: 4.435 | Y68: 2018-06-12 | Z68: 4.435 | AA68: 09 | AB68: 5 | AC68: 5 | AD68: 7.857142857 | AE68: =IF(Z68>0,27.5-(_xlfn.PERCENTRANK.EXC(Z:Z,Z68))/(1/27.5),"") -> 17.4075 | AF68: 17.16 | AG68: N | AH68: 0 | AI68: 0.161 | AJ68: 1.981 | AK68: 13.5 | AL68: 0 | AM68: 0 | AN68: 3 | AR68: 26.49914286 | AS68: =AR68/75 -> 0.3533219048
A69: 2268940 | B69: 8 | C69: Ulster | D69: 40 - Town | E69: 40 | F69: MILL BROOK ROAD | G69: MILL BROOK | H69: 42 | I69: 10.53 | J69: 0 | K69: 1991 | L69: 1262 | M69: 5.737 | N69: N | O69: majorrehab | P69: 0 | Q69: 4 | R69: N | S69: 09 | T69: 1 | U69: 0.169 | V69: 5 | W69: Fair | X69: 5.096 | Y69: 2019-05-23 | Z69: 5.096 | AA69: 09 | AB69: 5 | AC69: 5 | AD69: 7.857142857 | AE69: 10.9175 | AF69: 17.16 | AG69: N | AH69: 0 | AI69: 1.078 | AJ69: 6.853 | AK69: 0 | AL69: 0 | AM69: 0 | AN69: 3 | AO69: 0 | AR69: 18.78814286 | AS69: 0.2505085714
A70: 2269010 | B70: 8 | C70: Ulster | D70: 40 - Town | E70: 40 | F70: MAIN STREET | G70: BIRCH CREEK | H70: 219 | I70: 4.91 | J70: 1 | K70: 1990 | L70: 1184 | M70: 5 | N70: N | O70: maintproject | P70: 0 | Q70: 2 | R70: N | S70: 01 | T70: 8 | U70: 0.03 | V70: 5 | W70: Fair | X70: 4.936 | Y70: 2018-04-24 | Z70: 4.936 | AA70: 09 | AB70: 5 | AC70: 5 | AD70: 7.857142857 | AE70: 12.5125 | AF70: 17.16 | AG70: N | AH70: 0 | AI70: 3.269 | AJ70: 1.981 | AK70: 0.775 | AL70: 0 | AM70: 0 | AN70: 1 | AO70: 1 | AR70: 14.88214286 | AS70: 0.1984285714
A71: 2269920 | B71: 8 | C71: Ulster | D71: 42 - City | E71: 42 | F71: KINGSTON PT BRDGE | G71: KINGSTN PT LAGOON | I71: 0 | J71: 0 | K71: 1999 | L71: 460 | N71: N | O71: N/A | P71: 0 | R71: N | S71: 19 | T71: 2 | X71: 0 | Y71: 00:00:00 | Z71: 0 | AF71: =IF(AC71>0,(27.5-(_xlfn.PERCENTRANK.INC(AC:AC,AC71))/(1/27.5)),"") ->  | AJ71: 0 | AK71: 0 | AL71: 0 | AM71: 0 | AN71: 0 | AO71: 0 | AR71: 0 | AS71: 0
A72: 2270000 | B72: 8 | C72: Ulster | D72: 40 - Town | E72: 40 | F72: PECK HOLLOW ROAD | G72: PECK HOLLOW STRM | I72: 0 | J72: 99 | K72: 1996 | L72: 660 | M72: 3.314 | N72: Y | O72: majorrehab | P72: 20 | Q72: 4 | R72: N | S72: 09 | T72: 1 | U72: 0.549 | V72: 4 | W72: Poor | X72: 3.174 | Y72: 2019-06-25 | Z72: 3.174 | AA72: 09 | AB72: 3 | AC72: 3 | AD72: =27.5-(AC72*(27.5/7)) -> 15.71428571 | AE72: 26.0425 | AF72: =(27.5-(_xlfn.PERCENTRANK.INC(AC:AC,AC72))/(1/27.5)) -> 27.06 | AG72: Y | AH72: 5 | AJ72: 0 | AK72: 13.5 | AL72: 1.325 | AM72: 0 | AN72: 3 | AP72: 20 | AR72: 38.53928571 | AS72: 0.5138571429
A73: 2270010 | B73: 8 | C73: Ulster | D73: 40 - Town | E73: 40 | F73: PECK HOLLOW ROAD | G73: PECK HOLLOW STRM | I73: 0 | J73: 0 | K73: 1950 | L73: 1800 | M73: 6.633 | N73: N | O73: cyclical | P73: 0 | Q73: 4 | R73: Y | S73: 21 | T73: 1 | U73: 0.102 | V73: 8 | W73: Good | X73: 6.643 | Y73: 2019-12-16 | Z73: 6.643 | AA73: 09 | AB73: 7 | AC73: 7 | AD73: 0 | AE73: 1.265 | AF73: 1.6225 | AG73: N | AH73: 0 | AJ73: 0 | AK73: 0 | AL73: 0 | AM73: 5 | AN73: 3 | AO73: 0 | AR73: 8 | AS73: 0.1066666667
A74: 2270020 | B74: 8 | C74: Ulster | D74: 40 - Town | E74: 40 | F74: PECK HOLLOW RD | G74: PECK HOLLOW STRM | I74: 1 | J74: 10 | K74: 1997 | L74: 530 | M74: 6 | N74: N | O74: cyclical | P74: 20 | Q74: 4 | R74: N | S74: 27 | T74: B | U74: 0.101 | V74: 5 | W74: Fair | X74: 5.481 | Y74: 2019-08-30 | Z74: 5.481 | AA74: 09 | AB74: 5 | AC74: 5 | AD74: 7.857142857 | AE74: 8.7725 | AF74: 17.16 | AG74: N | AH74: 0 | AJ74: 0.259 | AK74: 10.5375 | AL74: 1.325 | AM74: 0 | AN74: 3 | AO74: 10 | AP74: 20 | AR74: 22.97864286 | AS74: 0.3063819048
A75: 2270070 | B75: 8 | C75: Ulster | D75: 40 - Town | E75: 40 | F75: DEER LANE | G75: ESOPUS CREEK OVFL | I75: 1 | J75: 99 | K75: 2009 | L75: 708 | M75: 5.333 | N75: N | O75: cyclical | P75: 0 | Q75: 3 | R75: N | S75: 09 | T75: 1 | U75: 0.092 | V75: 5 | W75: Fair | X75: 4.915 | Y75: 2019-08-20 | Z75: 4.915 | AA75: 09 | AB75: 5 | AC75: 5 | AD75: 7.857142857 | AE75: 12.6225 | AF75: 17.16 | AG75: N | AH75: 0 | AJ75: 0.259 | AK75: 13.5 | AL75: 0 | AM75: 0 | AN75: 2 | AR75: 23.61614286 | AS75: 0.3148819048
A76: 2270080 | B76: 8 | C76: Ulster | D76: 40 - Town | E76: 40 | F76: FOX HOLLOW ROAD | G76: FOX HOLLOW CREEK | H76: 83 | I76: 4.91 | J76: 99 | K76: 1995 | L76: 498 | M76: 4.569 | N76: N | O76: majorrehab | P76: 0 | Q76: 4 | R76: N | S76: 09 | T76: 1 | U76: 0.278 | V76: 5 | W76: Fair | X76: 4.217 | Y76: 2019-10-02 | Z76: 4.217 | AA76: 09 | AB76: 4 | AC76: 4 | AD76: 11.78571429 | AE76: 19.4425 | AF76: 24.75 | AG76: N | AH76: 0 | AI76: 1.897 | AJ76: 1.981 | AK76: 13.5 | AL76: 0 | AM76: 0 | AN76: 3 | AR76: 32.16371429 | AS76: 0.4288495238
A77: 2270130 | B77: 8 | C77: Ulster | D77: 40 - Town | E77: 40 | F77: MOON HAW ROAD | G77: WITTENBERG BROOK | I77: 0 | J77: 1 | K77: 2006 | L77: 403 | M77: 4.5 | N77: N | O77: majorrehab | P77: 10 | Q77: 2 | R77: N | S77: 09 | T77: 1 | U77: 0.286 | V77: 6 | W77: Fair | X77: 3.783 | Y77: 2019-08-19 | Z77: 3.783 | AA77: 09 | AB77: 5 | AC77: 5 | AD77: 7.857142857 | AE77: 23.32 | AF77: 17.16 | AG77: N | AH77: 0 | AJ77: 0 | AK77: 0.775 | AL77: 3.975 | AM77: 0 | AN77: 1 | AO77: 1 | AP77: 10 | AR77: 13.60714286 | AS77: 0.1814285714
A78: 2270140 | B78: 8 | C78: Ulster | D78: 40 - Town | E78: 40 | F78: Berme Road | G78: Criminal Creek | I78: 0 | J78: 1 | K78: 1992 | L78: 764 | M78: 5.125 | N78: N | O78: cyclical | P78: 0 | Q78: 4 | R78: N | S78: 43 | T78: B | U78: 0.037 | V78: 7 | W78: Good | X78: 4.636 | Y78: 2018-06-22 | Z78: 4.636 | AA78: 19 | AB78: 6 | AC78: 6 | AD78: 3.928571429 | AE78: 15.345 | AF78: 6.105 | AG78: N | AH78: 0 | AJ78: 0 | AK78: 0.775 | AL78: 0 | AM78: 0 | AN78: 3 | AO78: 1 | AR78: 7.703571429 | AS78: 0.1027142857
A79: 2270260 | B79: 8 | C79: Ulster | D79: 40 - Town | E79: 40 | F79: HINKLEY RD | G79: MILL BROOK | I79: 0 | J79: 99 | K79: 2014 | L79: 512 | M79: 6.897 | N79: N | O79: cyclical | P79: 0 | Q79: 4 | R79: N | S79: 01 | T79: B | U79: 0.072 | V79: 8 | W79: Good | X79: 6.182 | Y79: 2018-10-10 | Z79: 6.182 | AA79: 09 | AB79: 7 | AC79: 7 | AD79: 0 | AE79: 3.8775 | AF79: 1.6225 | AG79: N | AH79: 0 | AJ79: 0 | AK79: 13.5 | AL79: 0 | AM79: 0 | AN79: 3 | AR79: 16.5 | AS79: 0.22
A80: 2270520 | B80: 8 | C80: Ulster | D80: 40 - Town | E80: 40 | F80: Hudson Valley Rai | G80: Vine Yard Ave | H80: 3210 | I80: 2.94 | K80: 2010 | L80: 1536 | N80: N | O80: N/A | R80: Y | S80: 19 | T80: 3 | X80: 0 | Y80: 00:00:00 | Z80: 0 | AC80: 0 | AF80: 27.5 | AI80: 6.601 | AJ80: 0.581 | AK80: 0 | AL80: 0 | AM80: 5 | AN80: 0 | AO80: 0 | AR80: 12.182 | AS80: 0.1624266667
A81: 2270530 | B81: 8 | C81: Ulster | D81: 40 - Town | E81: 40 | F81: MILE HILL ROAD | G81: Hudson Valley Rail Trail | H81: 420 | I81: 4.55 | J81: 0 | K81: 2010 | L81: 677 | M81: 6.852 | N81: N | O81: cyclical | R81: N | S81: 27 | T81: B | U81: 0.035 | V81: 8 | W81: Good | X81: 6.556 | Y81: 2018-08-17 | Z81: 6.556 | AA81: 19 | AB81: 7 | AC81: 7 | AD81: =27.5-(AC81*(27.5/7)) -> 0 | AE81: 1.8425 | AF81: 1.6225 | AG81: =IF(W81="Poor", "Y", "N") -> N | AH81: 0 | AI81: 4.445 | AJ81: 1.512 | AK81: 0 | AL81: 0 | AM81: 0 | AN81: 0 | AO81: 0 | AR81: 5.957 | AS81: 0.07942666667
A82: 2270700 | B82: 8 | C82: Ulster | D82: 40 - Town | E82: 40 | F82: LOWER BIRCH CRK | G82: BIRCH CREEK | H82: 14 | I82: 4.91 | J82: 99 | K82: 2011 | L82: 1708 | M82: 6.449 | N82: N | O82: cyclical | Q82: 4 | R82: Y | S82: 21 | T82: 1 | U82: 0.152 | V82: 9 | W82: Good | X82: 6.625 | Y82: 2019-10-16 | Z82: 6.625 | AA82: 09 | AB82: 7 | AC82: 7 | AD82: 0 | AE82: 1.375 | AF82: 1.6225 | AG82: N | AH82: 0 | AI82: 0.42 | AJ82: 1.981 | AK82: 13.5 | AL82: 0 | AM82: 5 | AN82: 3 | AR82: 23.901 | AS82: 0.31868
A83: 2270820 | B83: 8 | C83: Ulster | D83: 40 - Town | E83: 40 | F83: BRADKIN ROAD | G83: Traver Hollow Creek | I83: 4.91 | J83: 0 | K83: 2012 | L83: 1041 | M83: 6.333 | N83: N | O83: cyclical | Q83: 5 | R83: N | S83: 26 | T83: 7 | U83: 0.092 | V83: 8 | W83: Good | X83: 6 | Y83: 2018-06-06 | Z83: 6 | AA83: 09 | AB83: 6 | AC83: 6 | AD83: 3.928571429 | AE83: 4.895 | AF83: 6.105 | AG83: N | AH83: 0 | AJ83: 1.981 | AK83: 0 | AL83: 0 | AM83: 0 | AN83: 4 | AO83: 0 | AR83: 9.909571429 | AS83: 0.132127619
A84: 2270830 | B84: 8 | C84: Ulster | D84: 40 - Town | E84: 40 | F84: KATE YAEGER ROAD | G84: Plattekill Creek | I84: 4.91 | J84: 2 | K84: 2012 | L84: 473 | M84: 6.628 | N84: N | O84: cyclical | Q84: 5 | R84: Y | S84: 03 | T84: B | U84: 0.124 | V84: 8 | W84: Good | X84: 6.568 | Y84: 2018-08-31 | Z84: 6.568 | AA84: 09 | AB84: 7 | AC84: 7 | AD84: 0 | AE84: 1.595 | AF84: 1.6225 | AG84: N | AH84: 0 | AJ84: 1.981 | AK84: 4.8125 | AL84: 0 | AM84: 5 | AN84: 4 | AO84: 2 | AR84: 15.7935 | AS84: 0.21058
A85: 2346960 | B85: 8 | C85: Ulster | D85: 40 - Town | E85: 40 | F85: ELM ROAD | G85: BIRCH CREEK | H85: 118 | I85: 4.91 | J85: 1 | K85: 1958 | L85: 2900 | M85: 3.913 | N85: N | O85: majorrehab | P85: 0 | Q85: 4 | R85: N | S85: 43 | T85: B | U85: 0.418 | V85: 6 | W85: Fair | X85: 4 | Y85: 2018-07-20 | Z85: 4 | AA85: 09 | AB85: 5 | AC85: 5 | AD85: 7.857142857 | AE85: 21.2575 | AF85: 17.16 | AG85: N | AH85: 0 | AI85: 2.254 | AJ85: 1.981 | AK85: 0.775 | AL85: 0 | AM85: 0 | AN85: 3 | AO85: 1 | AR85: 15.86714286 | AS85: 0.2115619048
A86: 3025090 | B86: 8 | C86: Ulster | D86: 30 - County | E86: 30 | F86: COUNTY ROAD 47 | G86: HATCHERY HOLLOW | H86: 404 | I86: 6.04 | J86: 25 | K86: 1986 | L86: 1066 | M86: 5.246 | N86: N | O86: majorrehab | P86: 0 | Q86: 4 | R86: N | S86: 09 | T86: 1 | U86: 0.234 | V86: 4 | W86: Poor | X86: 4.561 | Y86: 2019-07-17 | Z86: 4.561 | AA86: 08 | AB86: 4 | AC86: 4 | AD86: 11.78571429 | AE86: 16.0325 | AF86: 24.75 | AG86: Y | AH86: 5 | AI86: 4.284 | AJ86: 5.628 | AK86: 11.7125 | AL86: 0 | AM86: 0 | AN86: 3 | AO86: 25 | AR86: 41.41021429 | AS86: 0.5521361905
A87: 3025100 | B87: 8 | C87: Ulster | D87: 30 - County | E87: 30 | F87: COUNTY ROAD 47 | G87: LTL MABEN HOLLOW | H87: 404 | I87: 6.04 | J87: 25 | K87: 1970 | L87: 1032 | M87: 3.877 | N87: Y | O87: majorrehab | P87: 0 | Q87: 4 | R87: N | S87: 09 | T87: 2 | U87: 0.434 | V87: 7 | W87: Good | X87: 6.439 | Y87: 2019-06-27 | Z87: 6.439 | AA87: 08 | AB87: 6 | AC87: 6 | AD87: 3.928571429 | AE87: 2.3925 | AF87: 6.105 | AG87: N | AH87: 0 | AI87: 4.284 | AJ87: 5.628 | AK87: 11.7125 | AL87: 0 | AM87: 0 | AN87: 3 | AO87: 25 | AR87: 28.55307143 | AS87: 0.380707619
A88: 3025110 | B88: 8 | C88: Ulster | D88: 30 - County | E88: 30 | F88: COUNTY ROAD 47 | G88: BISCUIT CREEK | H88: 146 | I88: 6.04 | J88: 25 | K88: 1972 | L88: 2100 | M88: 5.517 | N88: Y | O88: majorrehab | P88: 0 | Q88: 2 | R88: N | S88: 09 | T88: 1 | U88: 0.32 | V88: 4 | W88: Poor | X88: 4.66 | Y88: 2018-06-05 | Z88: 4.66 | AA88: 08 | AB88: 5 | AC88: 5 | AD88: 7.857142857 | AE88: 15.015 | AF88: 17.16 | AG88: Y | AH88: 5 | AI88: 2.485 | AJ88: 5.628 | AK88: 11.7125 | AL88: 0 | AM88: 0 | AN88: 1 | AO88: 25 | AR88: 33.68264286 | AS88: 0.4491019048
A89: 3025130 | B89: 8 | C89: Ulster | D89: 30 - County | E89: 30 | F89: COUNTY ROAD 47 | G89: HIGH FALLS BROOK | H89: 146 | I89: 6.04 | J89: 25 | K89: 2006 | L89: 1204 | M89: 6.692 | N89: N | O89: cyclical | P89: 0 | Q89: 4 | R89: N | S89: 09 | T89: 1 | U89: 0.082 | V89: 6 | W89: Fair | X89: 6.192 | Y89: 2018-09-04 | Z89: 6.192 | AA89: 08 | AB89: 6 | AC89: 6 | AD89: 3.928571429 | AE89: 3.7675 | AF89: 6.105 | AG89: N | AH89: 0 | AI89: 2.485 | AJ89: 5.628 | AK89: 11.7125 | AL89: 0 | AM89: 0 | AN89: 3 | AO89: 25 | AR89: 26.75407143 | AS89: 0.3567209524
A90: 3025140 | B90: 8 | C90: Ulster | D90: 30 - County | E90: 30 | F90: COUNTY ROAD 47 | G90: FALL BROOK | H90: 146 | I90: 6.04 | J90: 25 | K90: 1993 | L90: 1033 | M90: 4.815 | N90: N | O90: cyclical | P90: 0 | Q90: 4 | R90: N | S90: 27 | T90: B | U90: 0.122 | V90: 5 | W90: Fair | X90: 5.889 | Y90: 2019-11-21 | Z90: 5.889 | AA90: 08 | AB90: 5 | AC90: 5 | AD90: 7.857142857 | AE90: 5.3625 | AF90: 17.16 | AG90: N | AH90: 0 | AI90: 2.485 | AJ90: 5.628 | AK90: 11.7125 | AL90: 0 | AM90: 0 | AN90: 3 | AO90: 25 | AR90: 30.68264286 | AS90: 0.4091019048
A91: 3041140 | B91: 8 | C91: Ulster | D91: 30 - County | E91: 30 | F91: 213 213 86011008 | G91: TONGORE BROOK | H91: 2096 | I91: 8.38 | J91: 4 | K91: 1929 | L91: 2158 | M91: 4.567 | N91: N | O91: cyclical | P91: 15 | Q91: 5 | R91: N | S91: 25 | T91: B | U91: 0.202 | V91: 6 | W91: Fair | X91: 3.533 | Y91: 2019-08-20 | Z91: 3.533 | AA91: 07 | AB91: 5 | AC91: 5 | AD91: 7.857142857 | AE91: 24.7775 | AF91: 17.16 | AG91: N | AH91: 0 | AI91: 6.146 | AJ91: 6.531 | AK91: 7.475 | AL91: 2.945 | AM91: 0 | AN91: 4 | AO91: 4 | AP91: 15 | AR91: 34.95414286 | AS91: 0.4660552381
A92: 3045230 | B92: 8 | C92: Ulster | D92: 30 - County | E92: 30 | F92: 299 299 86011060 | G92: WALLKILL RIVER | H92: 12366 | I92: 2.68 | J92: 15 | K92: 2016 | L92: 5250 | M92: 5.73 | N92: N | O92: cyclical | Q92: 4 | R92: Y | S92: 19 | T92: 2 | U92: 0.14 | V92: 6 | W92: Fair | X92: 5.569 | Y92: 2018-11-29 | Z92: 5.569 | AA92: 02 | AB92: 6 | AC92: 6 | AD92: 3.928571429 | AE92: 7.6175 | AF92: 6.105 | AG92: N | AH92: 0 | AI92: 7 | AJ92: 0.525 | AK92: 11.1875 | AL92: 0 | AM92: 5 | AN92: 3 | AO92: 15 | AR92: 30.64107143 | AS92: 0.408547619
A93: 3224180 | B93: 8 | C93: Ulster | D93: 30 - County | E93: 30 | F93: NEW HILL ROAD | G93: EAST BRANCH NEVERSINK RIVER | I93: 4.91 | J93: 3 | K93: 1973 | L93: 1610 | M93: 5.169 | N93: N | O93: vertdown | Q93: 3 | R93: N | S93: 09 | T93: 1 | U93: 0.046 | V93: 6 | W93: Fair | X93: 4.561 | Y93: 2019-10-03 | Z93: 4.561 | AA93: 09 | AB93: 5 | AC93: 5 | AD93: 7.857142857 | AE93: 16.0325 | AF93: 17.16 | AG93: N | AH93: 0 | AJ93: 1.981 | AK93: 6.4375 | AL93: 0 | AM93: 0 | AN93: 2 | AO93: 3 | AR93: 18.27564286 | AS93: 0.2436752381
A94: 3224270 | B94: 8 | C94: Ulster | D94: 30 - County | E94: 30 | F94: NEW PALTZ ROAD CR | G94: HUD VLY RL TRAIL | H94: 3370 | I94: 3.02 | J94: 2 | K94: 2011 | L94: 2952 | M94: 6.647 | N94: N | O94: cyclical | P94: 0 | R94: N | S94: 26 | T94: 7 | U94: 0.132 | V94: 8 | W94: Good | X94: 6.435 | Y94: 2019-07-18 | Z94: 6.435 | AA94: 17 | AB94: 7 | AC94: 7 | AD94: 0 | AE94: 2.64 | AF94: 1.6225 | AG94: N | AH94: 0 | AI94: 6.636 | AJ94: 0.609 | AK94: 4.8125 | AL94: 0 | AM94: 0 | AN94: 0 | AO94: 2 | AR94: 12.0575 | AS94: 0.1607666667
A95: 3224280 | B95: 8 | C95: Ulster | D95: 30 - County | E95: 30 | F95: NEW PALTZ ROAD CR | G95: HUD VALLY RL TRAI | H95: 3469 | I95: 4.79 | J95: 1 | K95: 2011 | L95: 3200 | M95: 6.429 | N95: N | O95: cyclical | P95: 0 | R95: N | S95: 26 | T95: 7 | U95: 0.131 | V95: 8 | W95: Good | X95: 6.435 | Y95: 2019-07-11 | Z95: 6.435 | AA95: 17 | AB95: 7 | AC95: 7 | AD95: 0 | AE95: 2.64 | AF95: 1.6225 | AG95: N | AH95: 0 | AI95: 6.671 | AJ95: 1.715 | AK95: 0.775 | AL95: 0 | AM95: 0 | AN95: 0 | AO95: 1 | AR95: 9.161 | AS95: 0.1221466667
A96: 3224810 | B96: 8 | C96: Ulster | D96: 30 - County | E96: 30 | F96: JOHN JOY ROAD | G96: SAW KILL | H96: 1052 | I96: 4.91 | J96: 1 | K96: 1975 | L96: 2700 | M96: 5.194 | N96: N | O96: cyclical | P96: 0 | Q96: 4 | R96: N | S96: 09 | T96: 1 | U96: 0.024 | V96: 6 | W96: Fair | X96: 5.07 | Y96: 2018-08-15 | Z96: 5.07 | AA96: 19 | AB96: 5 | AC96: 5 | AD96: 7.857142857 | AE96: 11.385 | AF96: 17.16 | AG96: N | AH96: 0 | AI96: 5.523 | AJ96: 1.981 | AK96: 0.775 | AL96: 0 | AM96: 0 | AN96: 3 | AO96: 1 | AR96: 19.13614286 | AS96: 0.2551485714
A97: 3346360 | B97: 8 | C97: Ulster | D97: 30 - County | E97: 30 | F97: COUNTY ROAD 46 | G97: DEAN BROOK | H97: 337 | I97: 4.91 | J97: 10 | K97: 2001 | L97: 781 | M97: 4.93 | N97: N | O97: majorrehab | P97: 0 | Q97: 4 | R97: N | S97: 09 | T97: 2 | U97: 0.194 | V97: 5 | W97: Fair | X97: 4.615 | Y97: 2019-08-28 | Z97: 4.615 | AA97: 09 | AB97: 4 | AC97: 4 | AD97: 11.78571429 | AE97: 15.5925 | AF97: 24.75 | AG97: N | AH97: 0 | AI97: 4.053 | AJ97: 1.981 | AK97: 10.5375 | AL97: 0 | AM97: 0 | AN97: 3 | AO97: 10 | AR97: 31.35721429 | AS97: 0.4180961905
A98: 3346370 | B98: 8 | C98: Ulster | D98: 30 - County | E98: 30 | F98: CR 42 | G98: BUSHKILL CREEK | H98: 712 | I98: 6.04 | J98: 27 | K98: 1993 | L98: 6150 | M98: 6.323 | N98: N | O98: cyclical | P98: 0 | Q98: 4 | R98: N | S98: 13 | T98: 2 | U98: 0.08 | V98: 5 | W98: Fair | X98: 6.047 | Y98: 2018-10-05 | Z98: 6.047 | AA98: 08 | AB98: 6 | AC98: 6 | AD98: 3.928571429 | AE98: 4.0975 | AF98: 6.105 | AG98: N | AH98: 0 | AI98: 5.096 | AJ98: 5.628 | AK98: 12.1625 | AL98: 0 | AM98: 0 | AN98: 3 | AO98: 27 | AR98: 29.81507143 | AS98: 0.3975342857
A99: 3346380 | B99: 8 | C99: Ulster | D99: 30 - County | E99: 30 | F99: HANG GLIDER ROAD | G99: SANDBURG CREEK | H99: 74 | I99: 4.91 | J99: 99 | K99: 1929 | L99: 1515 | M99: 4.561 | N99: Y | O99: majorrehab | P99: 0 | Q99: 3 | R99: N | S99: 09 | T99: 1 | U99: 0.354 | V99: 2 | W99: Poor | X99: 4.904 | Y99: 2019-04-09 | Z99: 4.904 | AA99: 09 | AB99: 4 | AC99: 4 | AD99: 11.78571429 | AE99: 12.98 | AF99: 24.75 | AG99: Y | AH99: 5 | AI99: 1.729 | AJ99: 1.981 | AK99: 13.5 | AL99: 0 | AM99: 0 | AN99: 2 | AR99: 35.99571429 | AS99: 0.4799428571
A100: 3346390 | B100: 8 | C100: Ulster | D100: 30 - County | E100: 30 | F100: HURLEY MOUNTAIN ROAD | G100: STONY CREEK | H100: 1004 | I100: 4.85 | J100: 14 | K100: 1988 | L100: 733 | M100: 5 | N100: N | O100: cyclical | P100: 0 | Q100: 4 | R100: N | S100: 43 | T100: B | U100: 0.084 | V100: 6 | W100: Fair | X100: 5 | Y100: 2018-03-21 | Z100: 5 | AA100: 08 | AB100: 5 | AC100: 5 | AD100: 7.857142857 | AE100: 12.1825 | AF100: 17.16 | AG100: N | AH100: 0 | AI100: 5.46 | AJ100: 1.806 | AK100: 11.0625 | AL100: 0 | AM100: 0 | AN100: 3 | AO100: 14 | AR100: 29.18564286 | AS100: 0.3891419048
A101: 3346400 | B101: 8 | C101: Ulster | D101: 30 - County | E101: 30 | F101: OREGON TRAIL | G101: VERKEERDER KILL | H101: 506 | I101: 4.91 | J101: 4 | K101: 2001 | L101: 928 | M101: 4.947 | N101: N | O101: cyclical | P101: 0 | Q101: 3 | R101: N | S101: 09 | T101: 2 | U101: 0.055 | V101: 4 | W101: Poor | X101: 4.404 | Y101: 2019-10-16 | Z101: 4.404 | AA101: 09 | AB101: 4 | AC101: 4 | AD101: 11.78571429 | AE101: 17.7375 | AF101: 24.75 | AG101: Y | AH101: 5 | AI101: 4.739 | AJ101: 1.981 | AK101: 7.475 | AL101: 0 | AM101: 0 | AN101: 2 | AO101: 4 | AR101: 32.98071429 | AS101: 0.4397428571
A102: 3346410 | B102: 8 | C102: Ulster | D102: 30 - County | E102: 30 | F102: BOODLE HOLE ROAD | G102: ROCHESTER CREEK | H102: 218 | I102: 4.91 | J102: 4 | K102: 1997 | L102: 1665 | M102: 5.281 | N102: N | O102: majorrehab | P102: 0 | Q102: 4 | R102: Y | S102: 10 | T102: 2 | U102: 0.256 | V102: 5 | W102: Fair | X102: 4.538 | Y102: 2018-04-24 | Z102: 4.538 | AA102: 09 | AB102: 4 | AC102: 4 | AD102: 11.78571429 | AE102: 16.61 | AF102: 24.75 | AG102: N | AH102: 0 | AI102: 3.199 | AJ102: 1.981 | AK102: 7.475 | AL102: 0 | AM102: 5 | AN102: 3 | AO102: 4 | AR102: 32.44071429 | AS102: 0.4325428571
A103: 3346420 | B103: 8 | C103: Ulster | D103: 30 - County | E103: 30 | F103: WOODLAND VLY ROAD | G103: WOODLAND CREEK | H103: 563 | I103: 4.91 | J103: 99 | K103: 1999 | L103: 4396 | M103: 5.571 | N103: N | O103: cyclical | P103: 0 | Q103: 5 | R103: N | S103: 13 | T103: 2 | U103: 0.067 | V103: 8 | W103: Good | X103: 5.787 | Y103: 2019-05-15 | Z103: 5.787 | AA103: 09 | AB103: 5 | AC103: 5 | AD103: 7.857142857 | AE103: 5.8025 | AF103: 17.16 | AG103: N | AH103: 0 | AI103: 4.872 | AJ103: 1.981 | AK103: 13.5 | AL103: 0 | AM103: 0 | AN103: 4 | AR103: 32.21014286 | AS103: 0.4294685714
A104: 3346430 | B104: 8 | C104: Ulster | D104: 30 - County | E104: 30 | F104: SPORTSMANS ROAD | G104: RONDOUT CREEK | H104: 149 | I104: 4.91 | J104: 3 | K104: 1931 | L104: 1900 | M104: 5.177 | N104: Y | O104: majorrehab | P104: 3 | Q104: 4 | R104: Y | S104: 19 | T104: 1 | U104: 0.378 | V104: 3 | W104: Poor | X104: 3.789 | Y104: 2019-06-25 | Z104: 3.789 | AA104: 09 | AB104: 3 | AC104: 3 | AD104: 15.71428571 | AE104: 23.1825 | AF104: 27.06 | AG104: Y | AH104: 5 | AI104: 2.611 | AJ104: 1.981 | AK104: 6.4375 | AL104: 4.855 | AM104: 5 | AN104: 3 | AO104: 3 | AP104: 3 | AR104: 44.59878571 | AS104: 0.5946504762
A105: 3346450 | B105: 8 | C105: Ulster | D105: 30 - County | E105: 30 | F105: QUEENS HIGHWAY | G105: FALLS MILL BROOK | H105: 2072 | I105: 4.98 | J105: 2 | K105: 1994 | L105: 1474 | M105: 5.481 | N105: N | O105: cyclical | P105: 0 | Q105: 4 | R105: N | S105: 09 | T105: 2 | U105: 0.024 | V105: 5 | W105: Fair | X105: 5.481 | Y105: 2018-09-19 | Z105: 5.481 | AA105: 09 | AB105: 5 | AC105: 5 | AD105: 7.857142857 | AE105: 8.7725 | AF105: 17.16 | AG105: N | AH105: 0 | AI105: 6.083 | AJ105: 5.362 | AK105: 4.8125 | AL105: 0 | AM105: 0 | AN105: 3 | AO105: 2 | AR105: 27.11464286 | AS105: 0.3615285714
A106: 3346460 | B106: 8 | C106: Ulster | D106: 30 - County | E106: 30 | F106: SHEELY ROAD | G106: SUNDOWN CREEK | H106: 40 | I106: 10 | J106: 1 | K106: 1995 | L106: 918 | M106: 5.825 | N106: N | O106: cyclical | P106: 0 | Q106: 4 | R106: N | S106: 09 | T106: 2 | U106: 0.014 | V106: 6 | W106: Fair | X106: 6.038 | Y106: 2019-08-28 | Z106: 6.038 | AA106: 09 | AB106: 6 | AC106: 6 | AD106: 3.928571429 | AE106: 4.2075 | AF106: 6.105 | AG106: N | AH106: 0 | AI106: 0.98 | AJ106: 6.615 | AK106: 0.775 | AL106: 0 | AM106: 0 | AN106: 3 | AO106: 1 | AR106: 15.29857143 | AS106: 0.2039809524
A107: 3346470 | B107: 8 | C107: Ulster | D107: 30 - County | E107: 30 | F107: DOUG RD | G107: ROCHESTER CREEK | H107: 65 | I107: 4.91 | J107: 3 | K107: 1996 | L107: 1248 | M107: 4.702 | N107: N | O107: deckrepl | P107: 0 | Q107: 5 | R107: N | S107: 09 | T107: 2 | U107: 0.058 | V107: 5 | W107: Fair | X107: 5.077 | Y107: 2019-04-11 | Z107: 5.077 | AA107: 09 | AB107: 4 | AC107: 4 | AD107: 11.78571429 | AE107: 11.275 | AF107: 24.75 | AG107: N | AH107: 0 | AI107: 1.568 | AJ107: 1.981 | AK107: 6.4375 | AL107: 0 | AM107: 0 | AN107: 4 | AO107: 3 | AR107: 25.77221429 | AS107: 0.3436295238
A108: 3346480 | B108: 8 | C108: Ulster | D108: 30 - County | E108: 30 | F108: INSTITUTION ROAD | G108: RONDOUT CREEK | H108: 1850 | I108: 3.92 | J108: 5 | K108: 1934 | L108: 4209 | M108: 5.541 | N108: N | O108: majorrehab | P108: 0 | Q108: 5 | R108: Y | S108: 15 | T108: 2 | U108: 0.263 | V108: 6 | W108: Fair | X108: 4.696 | Y108: 2018-09-26 | Z108: 4.696 | AA108: 19 | AB108: 5 | AC108: 5 | AD108: 7.857142857 | AE108: 14.5475 | AF108: 17.16 | AG108: N | AH108: 0 | AI108: 6.013 | AJ108: 0.959 | AK108: 8.1375 | AL108: 0 | AM108: 5 | AN108: 4 | AO108: 5 | AR108: 31.96664286 | AS108: 0.4262219048
A109: 3346490 | B109: 8 | C109: Ulster | D109: 30 - County | E109: 30 | F109: PEEKAMOOSE ROAD | G109: RONDOUT CREEK | H109: 91 | I109: 6.04 | J109: 27 | K109: 2006 | L109: 1526 | M109: 5.842 | N109: N | O109: cyclical | P109: 0 | Q109: 4 | R109: N | S109: 09 | T109: 1 | U109: 0.082 | V109: 7 | W109: Good | X109: 5.846 | Y109: 2018-06-01 | Z109: 5.846 | AA109: 08 | AB109: 6 | AC109: 6 | AD109: 3.928571429 | AE109: 5.5825 | AF109: 6.105 | AG109: N | AH109: 0 | AI109: 2.058 | AJ109: 5.628 | AK109: 12.1625 | AL109: 0 | AM109: 0 | AN109: 3 | AO109: 27 | AR109: 26.77707143 | AS109: 0.357027619
A110: 3346500 | B110: 8 | C110: Ulster | D110: 30 - County | E110: 30 | F110: PEEKAMOOSE ROAD | G110: BUTTERMILK FALLS BROOK | H110: 91 | I110: 6.04 | J110: 27 | K110: 1929 | L110: 844 | M110: 5.93 | N110: N | O110: majorrehab | Q110: 2 | R110: N | S110: 09 | T110: 2 | U110: 0.315 | V110: 5 | W110: Fair | X110: 6.212 | Y110: 2019-11-15 | Z110: 6.212 | AA110: 08 | AB110: 5 | AC110: 5 | AD110: 7.857142857 | AE110: 3.6575 | AF110: 17.16 | AG110: N | AH110: 0 | AI110: 2.058 | AJ110: 5.628 | AK110: 12.1625 | AL110: 0 | AM110: 0 | AN110: 1 | AO110: 27 | AR110: 28.70564286 | AS110: 0.3827419048
A111: 3346510 | B111: 8 | C111: Ulster | D111: 30 - County | E111: 30 | F111: COUNTY ROAD 30 | G111: SAW KILL | H111: 2338 | I111: 3.49 | J111: 8 | K111: 1931 | L111: 1300 | M111: 4.246 | N111: N | O111: majorrehab | P111: 0 | Q111: 4 | R111: N | S111: 09 | T111: 2 | U111: 0.305 | V111: 4 | W111: Poor | X111: 3.351 | Y111: 2019-07-29 | Z111: 3.351 | AA111: 08 | AB111: 3 | AC111: 3 | AD111: 15.71428571 | AE111: 25.8225 | AF111: 27.06 | AG111: Y | AH111: 5 | AI111: 6.279 | AJ111: 0.637 | AK111: 9.7 | AL111: 0 | AM111: 0 | AN111: 3 | AO111: 8 | AR111: 40.33028571 | AS111: 0.5377371429
A112: 3346530 | B112: 8 | C112: Ulster | D112: 30 - County | E112: 30 | F112: COUNTY ROAD 77 | G112: RONDOUT CREEK | H112: 2528 | I112: 4.85 | J112: 1 | K112: 2011 | L112: 7119 | M112: 5.441 | N112: N | O112: cyclical | P112: 0 | Q112: 4 | R112: N | S112: 03 | T112: E | U112: 0.098 | V112: 6 | W112: Fair | X112: 5.478 | Y112: 2019-05-14 | Z112: 5.478 | AA112: 09 | AB112: 6 | AC112: 6 | AD112: 3.928571429 | AE112: 8.9925 | AF112: 6.105 | AG112: N | AH112: 0 | AI112: 6.377 | AJ112: 1.806 | AK112: 0.775 | AL112: 0 | AM112: 0 | AN112: 3 | AO112: 1 | AR112: 15.88657143 | AS112: 0.2118209524
A113: 3346540 | B113: 8 | C113: Ulster | D113: 30 - County | E113: 30 | F113: DRY BROOK ROAD | G113: HAYNES HOLLOW STREAM | H113: 27 | I113: 4.76 | J113: 99 | K113: 1929 | L113: 929 | M113: 5.115 | N113: N | O113: minorrehab | P113: 0 | Q113: 4 | R113: N | S113: 09 | T113: 2 | U113: 0.062 | V113: 6 | W113: Fair | X113: 4.192 | Y113: 2018-06-07 | Z113: 4.192 | AA113: 09 | AB113: 5 | AC113: 5 | AD113: =27.5-(AC113*(27.5/7)) -> 7.857142857 | AE113: 20.02 | AF113: 17.16 | AG113: =IF(W113="Poor", "Y", "N") -> N | AH113: 0 | AI113: 0.588 | AJ113: 1.54 | AK113: 13.5 | AL113: 0 | AM113: 0 | AN113: 3 | AR113: 26.48514286 | AS113: 0.3531352381
A114: 3346550 | B114: 8 | C114: Ulster | D114: 30 - County | E114: 30 | F114: LAKE ROAD | G114: PALMAGHATT KILL | H114: 218 | I114: 4.91 | J114: 1 | K114: 2005 | L114: 1084 | M114: 5.386 | N114: N | O114: deckrepl | P114: 0 | Q114: 5 | R114: N | S114: 09 | T114: 2 | U114: 0.015 | V114: 5 | W114: Fair | X114: 4.772 | Y114: 2019-09-17 | Z114: 4.772 | AA114: 09 | AB114: 5 | AC114: 5 | AD114: 7.857142857 | AE114: 13.75 | AF114: 17.16 | AG114: N | AH114: 0 | AI114: 3.199 | AJ114: 1.981 | AK114: 0.775 | AL114: 0 | AM114: 0 | AN114: 4 | AO114: 1 | AR114: 17.81214286 | AS114: 0.2374952381
A115: 3346560 | B115: 8 | C115: Ulster | D115: 30 - County | E115: 30 | F115: COUNTY ROAD 7 | G115: KLYNE KILL | H115: 2342 | I115: 6.25 | J115: 5 | K115: 2006 | L115: 1680 | M115: 5.737 | N115: N | O115: cyclical | P115: 0 | Q115: 4 | R115: N | S115: 09 | T115: 1 | U115: 0.05 | V115: 6 | W115: Fair | X115: 5.981 | Y115: 2018-11-14 | Z115: 5.981 | AA115: 08 | AB115: 6 | AC115: 6 | AD115: 3.928571429 | AE115: 5.005 | AF115: 6.105 | AG115: N | AH115: 0 | AI115: 6.307 | AJ115: 6.237 | AK115: 8.1375 | AL115: 0 | AM115: 0 | AN115: 3 | AO115: 5 | AR115: 27.61007143 | AS115: 0.3681342857
A116: 3346570 | B116: 8 | C116: Ulster | D116: 30 - County | E116: 30 | F116: COUNTY ROAD 31 | G116: PLATTEKILL CREEK | H116: 5959 | I116: 5.62 | J116: 5 | K116: 1931 | L116: 3874 | M116: 5.737 | N116: N | O116: maintproject | Q116: 4 | R116: Y | S116: 21 | T116: 1 | U116: 0.156 | V116: 6 | W116: Fair | X116: 5.386 | Y116: 2019-06-27 | Z116: 5.386 | AA116: 17 | AB116: 5 | AC116: 5 | AD116: 7.857142857 | AE116: 9.9 | AF116: 17.16 | AG116: N | AH116: 0 | AI116: 6.93 | AJ116: 5.481 | AK116: 8.1375 | AL116: 0 | AM116: 5 | AN116: 3 | AO116: 5 | AR116: 36.40564286 | AS116: 0.4854085714
A117: 3346580 | B117: 8 | C117: Ulster | D117: 30 - County | E117: 30 | F117: SUNDALE ROAD | G117: METTACHONTS CREEK | I117: 10 | J117: 4 | K117: 1929 | L117: 1627 | M117: 4.351 | N117: N | O117: deckrepl | Q117: 4 | R117: N | S117: 09 | T117: 1 | U117: 0.112 | V117: 5 | W117: Fair | X117: 4.019 | Y117: 2018-08-07 | Z117: 4.019 | AA117: 09 | AB117: 5 | AC117: 5 | AD117: 7.857142857 | AE117: 20.9275 | AF117: 17.16 | AG117: N | AH117: 0 | AJ117: 6.615 | AK117: 7.475 | AL117: 0 | AM117: 0 | AN117: 3 | AO117: 4 | AR117: 24.94714286 | AS117: 0.3326285714
A118: 3346590 | B118: 8 | C118: Ulster | D118: 30 - County | E118: 30 | F118: PEEKAMOOSE ROAD | G118: RONDOUT CREEK | H118: 91 | I118: 6.04 | J118: 27 | K118: 2003 | L118: 1596 | M118: 3.922 | N118: Y | O118: deckrepl | P118: 0 | Q118: 5 | R118: N | S118: 09 | T118: 2 | U118: 0.275 | V118: 4 | W118: Poor | X118: 3.423 | Y118: 2018-09-27 | Z118: 3.423 | AA118: 08 | AB118: 4 | AC118: 4 | AD118: 11.78571429 | AE118: 25.245 | AF118: 24.75 | AG118: Y | AH118: 5 | AI118: 2.058 | AJ118: 5.628 | AK118: 12.1625 | AL118: 0 | AM118: 0 | AN118: 4 | AO118: 27 | AR118: 40.63421429 | AS118: 0.5417895238
A119: 3346600 | B119: 8 | C119: Ulster | D119: 30 - County | E119: 30 | F119: KINGS HIGHWAY | G119: KRIPPLEBUSH CREEK | H119: 487 | I119: 4.91 | J119: 1 | K119: 1990 | L119: 1508 | M119: 5.07 | N119: N | O119: minorrehab | P119: 0 | Q119: 3 | R119: N | S119: 09 | T119: 1 | U119: 0.022 | V119: 5 | W119: Fair | X119: 5.135 | Y119: 2018-09-11 | Z119: 5.135 | AA119: 09 | AB119: 5 | AC119: 5 | AD119: 7.857142857 | AE119: 10.8075 | AF119: 17.16 | AG119: N | AH119: 0 | AI119: 4.676 | AJ119: 1.981 | AK119: 0.775 | AL119: 0 | AM119: 0 | AN119: 2 | AO119: 1 | AR119: 17.28914286 | AS119: 0.2305219048
A120: 3346610 | B120: 8 | C120: Ulster | D120: 30 - County | E120: 30 | F120: Cutler Road | G120: VERNOOY KILL | I120: 3.92 | J120: 1 | K120: 1955 | L120: 1452 | M120: 5.942 | N120: N | O120: maintproject | P120: 0 | Q120: 4 | R120: N | S120: 09 | T120: 1 | U120: 0.017 | V120: 6 | W120: Fair | X120: 6.25 | Y120: 2018-11-02 | Z120: 6.25 | AA120: 19 | AB120: 6 | AC120: 6 | AD120: 3.928571429 | AE120: 3.19 | AF120: 6.105 | AG120: N | AH120: 0 | AJ120: 0.959 | AK120: 0.775 | AL120: 0 | AM120: 0 | AN120: 3 | AO120: 1 | AR120: 8.662571429 | AS120: 0.1155009524
A121: 3346640 | B121: 8 | C121: Ulster | D121: 30 - County | E121: 30 | F121: ALBANY POST ROAD | G121: SHAWANGUNK KILL | H121: 2503 | I121: 5.85 | J121: 1 | K121: 1992 | L121: 5832 | M121: 5.781 | N121: N | O121: vertdown | P121: 0 | Q121: 5 | R121: N | S121: 13 | T121: 2 | U121: 0.037 | V121: 7 | W121: Good | X121: 5.484 | Y121: 2019-10-15 | Z121: 5.484 | AA121: 08 | AB121: 6 | AC121: 6 | AD121: 3.928571429 | AE121: 8.415 | AF121: 6.105 | AG121: N | AH121: 0 | AI121: 6.342 | AJ121: 5.6 | AK121: 0.775 | AL121: 0 | AM121: 0 | AN121: 4 | AO121: 1 | AR121: 20.64557143 | AS121: 0.2752742857
A122: 3346650 | B122: 8 | C122: Ulster | D122: 30 - County | E122: 30 | F122: COUNTY ROAD 27 | G122: STONY KILL | H122: 480 | I122: 4.79 | J122: 9 | K122: 1955 | L122: 1200 | M122: 4.439 | N122: N | O122: majorrehab | P122: 0 | Q122: 4 | R122: N | S122: 09 | T122: 1 | U122: 0.266 | V122: 5 | W122: Fair | X122: 4.538 | Y122: 2018-08-27 | Z122: 4.538 | AA122: 19 | AB122: 5 | AC122: 5 | AD122: 7.857142857 | AE122: 16.61 | AF122: 17.16 | AG122: N | AH122: 0 | AI122: 4.606 | AJ122: 1.715 | AK122: 9.95 | AL122: 0 | AM122: 0 | AN122: 3 | AO122: 9 | AR122: 27.12814286 | AS122: 0.3617085714
A123: 3346660 | B123: 8 | C123: Ulster | D123: 30 - County | E123: 30 | F123: DENNING ROAD | G123: E BR NEVERSINK RIVER | H123: 265 | I123: 4.91 | J123: 99 | K123: 1929 | L123: 900 | M123: 3.511 | N123: Y | O123: majorrehab | P123: 8 | Q123: 3 | R123: N | S123: 12 | T123: 1 | U123: 0.55 | V123: 2 | W123: Poor | X123: 7 | Y123: 2018-08-31 | Z123: 7 | AA123: 09 | AB123: 7 | AC123: 7 | AD123: 0 | AE123: 0.3575 | AF123: 1.6225 | AG123: N | AH123: 0 | AI123: 3.626 | AJ123: 1.981 | AK123: 13.5 | AL123: 4.415 | AM123: 0 | AN123: 2 | AP123: 8 | AR123: 25.522 | AS123: 0.3402933333
A124: 3346670 | B124: 8 | C124: Ulster | D124: 30 - County | E124: 30 | F124: FOX HOLLOW ROAD | G124: FOX HOLLOW CREEK | H124: 83 | I124: 4.91 | J124: 99 | K124: 1996 | L124: 995 | M124: 3.737 | N124: Y | O124: majorrehab | P124: 0 | Q124: 4 | R124: N | S124: 09 | T124: 2 | U124: 0.438 | V124: 4 | W124: Poor | X124: 3.5 | Y124: 2018-07-24 | Z124: 3.5 | AA124: 09 | AB124: 4 | AC124: 4 | AD124: 11.78571429 | AE124: 24.8875 | AF124: 24.75 | AG124: =IF(W124="Poor", "Y", "N") -> Y | AH124: 5 | AI124: 1.897 | AJ124: 1.981 | AK124: 13.5 | AL124: 0 | AM124: 0 | AN124: 3 | AR124: 37.16371429 | AS124: 0.4955161905
A125: 3346680 | B125: 8 | C125: Ulster | D125: 30 - County | E125: 30 | F125: PEEKAMOOSE ROAD | G125: BEAR HOLE BROOK | H125: 91 | I125: 6.04 | J125: 27 | K125: 1947 | L125: 917 | M125: 5.281 | N125: N | O125: maintproject | P125: 0 | Q125: 4 | R125: N | S125: 09 | T125: 1 | U125: 0.082 | V125: 4 | W125: Poor | X125: 5.462 | Y125: 2018-12-03 | Z125: 5.462 | AA125: 08 | AB125: 4 | AC125: 4 | AD125: 11.78571429 | AE125: 9.1025 | AF125: 24.75 | AG125: Y | AH125: 5 | AI125: 2.058 | AJ125: 5.628 | AK125: 12.1625 | AL125: 0 | AM125: 0 | AN125: 3 | AO125: 27 | AR125: 39.63421429 | AS125: 0.5284561905
A126: 3346690 | B126: 8 | C126: Ulster | D126: 30 - County | E126: 30 | F126: SOUTH HOLLOW ROAD | G126: BUSH KILL | H126: 4 | I126: 4.91 | J126: 99 | K126: 1983 | L126: 968 | M126: 4.667 | N126: N | O126: minorrehab | P126: 0 | Q126: 5 | R126: N | S126: 09 | T126: 1 | U126: 0.113 | V126: 4 | W126: Poor | X126: 4.192 | Y126: 2019-05-22 | Z126: 4.192 | AA126: 09 | AB126: 4 | AC126: 4 | AD126: 11.78571429 | AE126: 20.02 | AF126: 24.75 | AG126: Y | AH126: 5 | AI126: 0.161 | AJ126: 1.981 | AK126: 13.5 | AL126: 0 | AM126: 0 | AN126: 4 | AR126: 36.42771429 | AS126: 0.4857028571
A127: 3346700 | B127: 8 | C127: Ulster | D127: 30 - County | E127: 30 | F127: WALKER VALLEY RD | G127: PLATTE KILL | H127: 1077 | I127: 6.63 | J127: 3 | K127: 1986 | L127: 1235 | M127: 5.123 | N127: N | O127: cyclical | P127: 0 | Q127: 4 | R127: N | S127: 09 | T127: 1 | U127: 0.028 | V127: 6 | W127: Fair | X127: 5.158 | Y127: 2019-04-03 | Z127: 5.158 | AA127: 09 | AB127: 5 | AC127: 5 | AD127: 7.857142857 | AE127: 10.4775 | AF127: 17.16 | AG127: N | AH127: 0 | AI127: 5.593 | AJ127: 6.265 | AK127: 6.4375 | AL127: 0 | AM127: 0 | AN127: 3 | AO127: 3 | AR127: 29.15264286 | AS127: 0.3887019048
A128: 3346710 | B128: 8 | C128: Ulster | D128: 30 - County | E128: 30 | F128: BROAD ST HOLLW RD | G128: BROAD ST HOLLOW | H128: 187 | I128: 4.91 | J128: 1 | K128: 1998 | L128: 1084 | M128: 5.386 | N128: N | O128: minorrehab | P128: 0 | Q128: 4 | R128: N | S128: 09 | T128: 2 | U128: 0.015 | V128: 4 | W128: Poor | X128: 4.449 | Y128: 2019-04-03 | Z128: 4.449 | AA128: 09 | AB128: 4 | AC128: 4 | AD128: 11.78571429 | AE128: 17.16 | AF128: 24.75 | AG128: Y | AH128: 5 | AI128: 2.94 | AJ128: 1.981 | AK128: 0.775 | AL128: 0 | AM128: 0 | AN128: 3 | AO128: 1 | AR128: 25.48171429 | AS128: 0.3397561905
A129: 3346720 | B129: 8 | C129: Ulster | D129: 30 - County | E129: 30 | F129: CR 46 | G129: RONDOUT CREEK | H129: 337 | I129: 4.91 | J129: 10 | K129: 1946 | L129: 3000 | M129: 3.469 | N129: Y | O129: majorrehab | P129: 15 | Q129: 3 | R129: Y | S129: 19 | T129: 1 | U129: 0.631 | V129: 4 | W129: Poor | X129: 3 | Y129: 2019-06-26 | Z129: 3 | AA129: 09 | AB129: 3 | AC129: 3 | AD129: 15.71428571 | AE129: 26.3725 | AF129: 27.06 | AG129: Y | AH129: 5 | AI129: 4.053 | AJ129: 1.981 | AK129: 10.5375 | AL129: 2.945 | AM129: 5 | AN129: 2 | AO129: 10 | AP129: 15 | AR129: 47.23078571 | AS129: 0.6297438095
A130: 3346730 | B130: 8 | C130: Ulster | D130: 30 - County | E130: 30 | F130: COUNTY ROAD 49A | G130: RIDER HOLLOW STREAM | H130: 189 | I130: 8.74 | J130: 11 | K130: 2007 | L130: 1605 | M130: 6.649 | N130: N | O130: cyclical | P130: 0 | Q130: 4 | R130: N | S130: 09 | T130: 1 | U130: 0.041 | V130: 7 | W130: Good | X130: 6.754 | Y130: 2018-05-17 | Z130: 6.754 | AA130: 09 | AB130: 5 | AC130: 5 | AD130: 7.857142857 | AE130: 0.6875 | AF130: 17.16 | AG130: N | AH130: 0 | AI130: 3.003 | AJ130: 6.559 | AK130: 10.8625 | AL130: 0 | AM130: 0 | AN130: 3 | AO130: 11 | AR130: 31.28164286 | AS130: 0.4170885714
A131: 3346740 | B131: 8 | C131: Ulster | D131: 30 - County | E131: 30 | F131: COUNTY ROAD 35 | G131: PLATTEKILL CREEK | H131: 3678 | I131: 3.5 | J131: 2 | K131: 1994 | L131: 1352 | M131: 4.912 | N131: Y | O131: majorrehab | P131: 0 | Q131: 4 | R131: N | S131: 09 | T131: 2 | U131: 0.253 | V131: 4 | W131: Poor | X131: 4.385 | Y131: 2018-06-21 | Z131: 4.385 | AA131: 08 | AB131: 4 | AC131: 4 | AD131: 11.78571429 | AE131: 17.9575 | AF131: 24.75 | AG131: Y | AH131: =_xlfn.IFNA((IF(AG131="N",0,5)),"") -> 5 | AI131: =_xlfn.IFNA((_xlfn.PERCENTRANK.INC(H:H,H131))/(1/7),"") -> 6.734 | AJ131: =(_xlfn.PERCENTRANK.INC(I:I,I131))/(1/7) -> 0.7 | AK131: =IF(J131=99,13.5,(_xlfn.PERCENTRANK.INC(AO:AO,AO131))/(1/12.5)) -> 4.8125 | AL131: =IF(OR(P131=0,P131>97),0,(5-(_xlfn.PERCENTRANK.EXC(AP:AP,AP131))/(1/5))) -> 0 | AM131: =IF(R131="Y",5,0) -> 0 | AN131: =IFERROR((Q131-1),0) -> 3 | AO131: =IF(J131=99,"",J131) -> 2 | AP131: =IF(OR(P131=0,P131>97),"",P131) ->  | AR131: =SUM(AN131,AM131,AL131,AK131,AJ131,AI131,AH131,AD131) -> 32.03221429 | AS131: 0.4270961905
A132: 3346750 | B132: 8 | C132: Ulster | D132: 30 - County | E132: 30 | F132: COUNTY ROAD 33 | G132: PLATTEKILL CREEK | H132: 2539 | I132: 6.04 | J132: 8 | K132: 1995 | L132: 2003 | M132: 4.525 | N132: Y | O132: majorrehab | P132: 0 | Q132: 5 | R132: N | S132: 09 | T132: 2 | U132: 0.254 | V132: 4 | W132: Poor | X132: 4.23 | Y132: 2018-11-12 | Z132: 4.23 | AA132: 09 | AB132: 4 | AC132: 4 | AD132: 11.78571429 | AE132: =IF(Z132>0,27.5-(_xlfn.PERCENTRANK.EXC(Z:Z,Z132))/(1/27.5),"") -> 19.3325 | AF132: =(27.5-(_xlfn.PERCENTRANK.INC(AC:AC,AC132))/(1/27.5)) -> 24.75 | AG132: Y | AH132: 5 | AI132: 6.503 | AJ132: 5.628 | AK132: 9.7 | AL132: 0 | AM132: 0 | AN132: 4 | AO132: 8 | AR132: 42.61671429 | AS132: =AR132/75 -> 0.5682228571
A133: 3346760 | B133: 8 | C133: Ulster | D133: 30 - County | E133: 30 | F133: BONNIEVIEW RD | G133: CATHEDRAL GLEN | H133: 6 | I133: 4.91 | J133: 99 | K133: 1930 | L133: 861 | M133: 3.947 | N133: Y | O133: majorrehab | P133: 14 | Q133: 4 | R133: N | S133: 09 | T133: 2 | U133: 0.457 | V133: 4 | W133: Poor | X133: 3.654 | Y133: 2019-10-29 | Z133: 3.654 | AA133: 09 | AB133: 3 | AC133: 3 | AD133: 15.71428571 | AE133: 24.2275 | AF133: 27.06 | AG133: Y | AH133: 5 | AI133: 0.224 | AJ133: 1.981 | AK133: 13.5 | AL133: 3.24 | AM133: 0 | AN133: 3 | AP133: 14 | AR133: 42.65928571 | AS133: 0.5687904762
A134: 3346770 | B134: 8 | C134: Ulster | D134: 30 - County | E134: 30 | F134: SCHOOL HILL ROAD | G134: COXING KILL | H134: 124 | I134: 4.91 | J134: 1 | K134: 1986 | L134: 1840 | M134: 5.52 | N134: N | O134: cyclical | P134: 0 | Q134: 5 | R134: N | S134: 03 | T134: E | U134: 0.089 | V134: 6 | W134: Fair | X134: 5.478 | Y134: 2019-08-13 | Z134: 5.478 | AA134: 09 | AB134: 5 | AC134: 5 | AD134: 7.857142857 | AE134: 8.9925 | AF134: 17.16 | AG134: N | AH134: 0 | AI134: 2.289 | AJ134: 1.981 | AK134: 0.775 | AL134: 0 | AM134: 0 | AN134: 4 | AO134: 1 | AR134: 16.90214286 | AS134: 0.2253619048
A135: 3346780 | B135: 8 | C135: Ulster | D135: 30 - County | E135: 30 | F135: COUNTY ROAD 1 | G135: KRIPPLEBUSH CREEK | H135: 2837 | I135: 5.03 | J135: 6 | K135: 1964 | L135: 1800 | M135: 5.3 | N135: N | O135: cyclical | P135: 0 | Q135: 5 | R135: N | S135: 09 | T135: 1 | U135: 0.078 | V135: 4 | W135: Poor | X135: 4.3 | Y135: 2019-06-11 | Z135: 4.3 | AA135: 07 | AB135: 4 | AC135: 4 | AD135: 11.78571429 | AE135: 18.645 | AF135: 24.75 | AG135: Y | AH135: 5 | AI135: 6.538 | AJ135: 5.39 | AK135: 8.85 | AL135: 0 | AM135: 0 | AN135: 4 | AO135: 6 | AR135: 41.56371429 | AS135: 0.5541828571
A136: 3346790 | B136: 8 | C136: Ulster | D136: 30 - County | E136: 30 | F136: CANYON LAKE RD | G136: NORTH PETERS KILL | I136: 1 | J136: 2 | K136: 1929 | L136: 860 | M136: 4.702 | N136: Y | O136: cyclical | P136: 0 | Q136: 4 | R136: N | S136: 09 | T136: 1 | U136: 0.11 | V136: 4 | W136: Poor | X136: 4.346 | Y136: 2019-06-14 | Z136: 4.346 | AA136: 09 | AB136: 4 | AC136: 4 | AD136: 11.78571429 | AE136: 18.315 | AF136: 24.75 | AG136: Y | AH136: 5 | AJ136: 0.259 | AK136: 4.8125 | AL136: 0 | AM136: 0 | AN136: 3 | AO136: 2 | AR136: 24.85721429 | AS136: 0.3314295238
A137: 3346800 | B137: 8 | C137: Ulster | D137: 30 - County | E137: 30 | F137: UPPER SAHLR ML RD | G137: ROCHESTER CREEK | H137: 62 | I137: 4 | J137: 2 | K137: 2008 | L137: 784 | M137: 6.789 | N137: N | O137: cyclical | P137: 0 | Q137: 5 | R137: N | S137: 09 | T137: 1 | U137: 0.02 | V137: 6 | W137: Fair | X137: 6.75 | Y137: 2018-12-10 | Z137: 6.75 | AA137: 09 | AB137: 6 | AC137: 6 | AD137: 3.928571429 | AE137: 0.7975 | AF137: 6.105 | AG137: N | AH137: 0 | AI137: 1.4 | AJ137: 1.365 | AK137: 4.8125 | AL137: 0 | AM137: 0 | AN137: 4 | AO137: 2 | AR137: 15.50607143 | AS137: 0.206747619
A138: 3346810 | B138: 8 | C138: Ulster | D138: 30 - County | E138: 30 | F138: BLUE MOUNTAIN RD | G138: PLATTEKILL CREEK | H138: 793 | I138: 5.78 | J138: 5 | K138: 1995 | L138: 1392 | M138: 4.033 | N138: Y | O138: majorrehab | P138: 15 | Q138: 4 | R138: N | S138: 09 | T138: 2 | U138: 0.409 | V138: 5 | W138: Fair | X138: 5.596 | Y138: 2019-08-16 | Z138: 5.596 | AA138: 09 | AB138: 6 | AC138: 6 | AD138: 3.928571429 | AE138: 7.1775 | AF138: 6.105 | AG138: N | AH138: 0 | AI138: 5.229 | AJ138: 5.537 | AK138: 8.1375 | AL138: 2.945 | AM138: 0 | AN138: 3 | AO138: 5 | AP138: 15 | AR138: 28.77707143 | AS138: 0.3836942857
A139: 3346820 | B139: 8 | C139: Ulster | D139: 30 - County | E139: 30 | F139: BLUE MOUNTAIN RD | G139: LUCAS KILL | H139: 793 | I139: 5.78 | J139: 6 | K139: 1996 | L139: 1508 | M139: 4.07 | N139: N | O139: majorrehab | P139: 0 | Q139: 4 | R139: N | S139: 09 | T139: 2 | U139: 0.306 | V139: 4 | W139: Poor | X139: 4.365 | Y139: 2019-05-30 | Z139: 4.365 | AA139: 09 | AB139: 4 | AC139: 4 | AD139: 11.78571429 | AE139: 18.205 | AF139: 24.75 | AG139: Y | AH139: 5 | AI139: 5.229 | AJ139: 5.537 | AK139: 8.85 | AL139: 0 | AM139: 0 | AN139: 3 | AO139: 6 | AR139: 39.40171429 | AS139: 0.5253561905
A140: 3346830 | B140: 8 | C140: Ulster | D140: 30 - County | E140: 30 | F140: County Road 18 | G140: DWAAR KILL | H140: 4009 | I140: 6.83 | J140: 4 | K140: 1989 | L140: 1508 | M140: 4.649 | N140: N | O140: deckrepl | P140: 0 | Q140: 4 | R140: N | S140: 09 | T140: 1 | U140: 0.087 | V140: 5 | W140: Fair | X140: 4.308 | Y140: 2018-08-02 | Z140: 4.308 | AA140: 09 | AB140: 5 | AC140: 5 | AD140: 7.857142857 | AE140: 18.535 | AF140: 17.16 | AG140: N | AH140: 0 | AI140: 6.832 | AJ140: 6.3 | AK140: 7.475 | AL140: 0 | AM140: 0 | AN140: 3 | AO140: 4 | AR140: 31.46414286 | AS140: 0.4195219048
A141: 3346840 | B141: 8 | C141: Ulster | D141: 30 - County | E141: 30 | F141: DRY BROOK ROAD | G141: DRY BROOK | H141: 27 | I141: 4.76 | J141: 99 | K141: 1956 | L141: 1098 | M141: 4.579 | N141: N | O141: minorrehab | P141: 0 | Q141: 4 | R141: N | S141: 09 | T141: 1 | U141: 0.125 | V141: 5 | W141: Fair | X141: 3.731 | Y141: 2019-05-15 | Z141: 3.731 | AA141: 09 | AB141: 4 | AC141: 4 | AD141: 11.78571429 | AE141: 23.54 | AF141: 24.75 | AG141: N | AH141: 0 | AI141: 0.588 | AJ141: 1.54 | AK141: 13.5 | AL141: 0 | AM141: 0 | AN141: 3 | AR141: 30.41371429 | AS141: 0.4055161905
A142: 3346850 | B142: 8 | C142: Ulster | D142: 30 - County | E142: 30 | F142: GLASCO TURNPIKE | G142: ESOPUS CREEK | H142: 3927 | I142: 3.66 | J142: 7 | K142: 1962 | L142: 7038 | M142: 5.923 | N142: N | O142: cyclical | P142: 0 | Q142: 5 | R142: N | S142: 13 | T142: 1 | U142: 0.069 | V142: 5 | W142: Fair | X142: 5.531 | Y142: 2018-11-05 | Z142: 5.531 | AA142: 17 | AB142: 5 | AC142: 5 | AD142: 7.857142857 | AE142: 7.975 | AF142: 17.16 | AG142: N | AH142: 0 | AI142: 6.769 | AJ142: 0.812 | AK142: 9.3 | AL142: 0 | AM142: 0 | AN142: 4 | AO142: 7 | AR142: 28.73814286 | AS142: 0.3831752381
A143: 3346870 | B143: 8 | C143: Ulster | D143: 30 - County | E143: 30 | F143: ULSTER HEIGHTS RD | G143: BOTSFORD BROOK | H143: 184 | I143: 6.04 | J143: 23 | K143: 1953 | L143: 2000 | M143: 4.2 | N143: Y | O143: replace | P143: 10 | Q143: 4 | R143: N | S143: 09 | T143: 1 | U143: 0.439 | V143: 4 | W143: Poor | X143: 4.067 | Y143: 2019-08-28 | Z143: 4.067 | AA143: 08 | AB143: 4 | AC143: 4 | AD143: 11.78571429 | AE143: 20.57 | AF143: 24.75 | AG143: Y | AH143: 5 | AI143: 2.905 | AJ143: 5.628 | AK143: 11.5875 | AL143: 3.975 | AM143: 0 | AN143: 3 | AO143: 23 | AP143: 10 | AR143: 43.88121429 | AS143: 0.5850828571
A144: 3346880 | B144: 8 | C144: Ulster | D144: 30 - County | E144: 30 | F144: COUNTY ROAD 29A | G144: ESOPUS CREEK | H144: 1963 | I144: 4.08 | J144: 4 | K144: 2014 | L144: 4166 | M144: 6.22 | N144: N | O144: cyclical | P144: 0 | Q144: 4 | R144: Y | S144: 19 | T144: 1 | U144: 0.105 | V144: 6 | W144: Fair | Z144: 6.22 | AA144: 08 | AC144: 0 | AE144: 3.41 | AF144: 27.5 | AG144: N | AH144: 0 | AI144: 6.048 | AJ144: 1.4 | AK144: 7.475 | AL144: 0 | AM144: 5 | AN144: 3 | AO144: 4 | AR144: 22.923 | AS144: 0.30564
A145: 3346910 | B145: 8 | C145: Ulster | D145: 30 - County | E145: 30 | F145: SNYDER ROAD | G145: PLATTEKILL CREEK | H145: 1607 | I145: 3.92 | J145: 5 | K145: 1955 | L145: 3000 | M145: 4.074 | N145: Y | O145: majorrehab | P145: 0 | Q145: 4 | R145: N | S145: 09 | T145: 2 | U145: 0.355 | V145: 4 | W145: Poor | X145: 3.926 | Y145: 2019-04-18 | Z145: 3.926 | AA145: 19 | AB145: 4 | AC145: 4 | AD145: =27.5-(AC145*(27.5/7)) -> 11.78571429 | AE145: 21.615 | AF145: 24.75 | AG145: Y | AH145: 5 | AI145: 5.95 | AJ145: 0.959 | AK145: 8.1375 | AL145: 0 | AM145: 0 | AN145: 3 | AO145: 5 | AR145: 34.83221429 | AS145: 0.4644295238
A146: 3346920 | B146: 8 | C146: Ulster | D146: 30 - County | E146: 30 | F146: GRANITE ROAD | G146: STONY KILL | H146: 480 | I146: 4.79 | J146: 9 | K146: 1990 | L146: 1150 | M146: 4.93 | N146: N | O146: vertdown | P146: 0 | Q146: 4 | R146: N | S146: 09 | T146: 1 | U146: 0.049 | V146: 6 | W146: Fair | X146: 4.846 | Y146: 2018-11-29 | Z146: 4.846 | AA146: 19 | AB146: 5 | AC146: 5 | AD146: 7.857142857 | AE146: 13.31 | AF146: 17.16 | AG146: N | AH146: 0 | AI146: 4.606 | AJ146: 1.715 | AK146: 9.95 | AL146: 0 | AM146: 0 | AN146: 3 | AO146: 9 | AR146: 27.12814286 | AS146: 0.3617085714
A147: 3346930 | B147: 8 | C147: Ulster | D147: 30 - County | E147: 30 | F147: GRAU ROAD | G147: PLATTE KILL | H147: 327 | I147: 6.09 | J147: 2 | K147: 1985 | L147: 936 | M147: 4.684 | N147: N | O147: cyclical | P147: 0 | Q147: 4 | R147: N | S147: 09 | T147: 1 | U147: 0.066 | V147: 5 | W147: Fair | X147: 4.731 | Y147: 2018-12-12 | Z147: 4.731 | AA147: 09 | AB147: 5 | AC147: 5 | AD147: 7.857142857 | AE147: 14.3275 | AF147: 17.16 | AG147: N | AH147: 0 | AI147: 4.018 | AJ147: 6.209 | AK147: 4.8125 | AL147: 0 | AM147: 0 | AN147: 3 | AO147: 2 | AR147: 25.89664286 | AS147: 0.3452885714
A148: 3346940 | B148: 8 | C148: Ulster | D148: 30 - County | E148: 30 | F148: CLOVE VALLEY ROAD | G148: COXING KILL | H148: 228 | I148: 4.91 | J148: 6 | K148: 2000 | L148: 959 | M148: 4.789 | N148: N | O148: minorrehab | P148: 0 | Q148: 5 | R148: N | S148: 09 | T148: 2 | U148: 0.054 | V148: 4 | W148: Poor | X148: 3.885 | Y148: 2019-08-13 | Z148: 3.885 | AA148: 09 | AB148: 4 | AC148: 4 | AD148: 11.78571429 | AE148: 22.275 | AF148: 24.75 | AG148: Y | AH148: 5 | AI148: 3.367 | AJ148: 1.981 | AK148: 8.85 | AL148: 0 | AM148: 0 | AN148: 4 | AO148: 6 | AR148: 34.98371429 | AS148: 0.4664495238
A149: 3346970 | B149: 8 | C149: Ulster | D149: 30 - County | E149: 30 | F149: DRY BROOK ROAD | G149: DRY BROOK | H149: 27 | I149: 4.76 | J149: 99 | K149: 1933 | L149: 1071 | M149: 3.877 | N149: Y | O149: majorrehab | P149: 18 | Q149: 4 | R149: N | S149: 09 | T149: 2 | U149: 0.467 | V149: 5 | W149: Fair | X149: 5.519 | Y149: 2019-07-17 | Z149: 5.519 | AA149: 09 | AB149: 6 | AC149: 6 | AD149: 3.928571429 | AE149: 8.305 | AF149: 6.105 | AG149: N | AH149: 0 | AI149: 0.588 | AJ149: 1.54 | AK149: 13.5 | AL149: 1.62 | AM149: 0 | AN149: 3 | AP149: 18 | AR149: 24.17657143 | AS149: 0.3223542857
A150: 3347000 | B150: 8 | C150: Ulster | D150: 30 - County | E150: 30 | F150: BIG POND ROAD | G150: BEAVER KILL | H150: 88 | I150: 3.49 | J150: 7 | K150: 1960 | L150: 2576 | M150: 4.475 | N150: Y | O150: maintproject | P150: 0 | Q150: 4 | R150: N | S150: 09 | T150: 2 | U150: 0.16 | V150: 4 | W150: Poor | X150: 4.571 | Y150: 2018-11-01 | Z150: 4.571 | AA150: 08 | AB150: 4 | AC150: 4 | AD150: 11.78571429 | AE150: 15.8125 | AF150: 24.75 | AG150: Y | AH150: 5 | AI150: 2.023 | AJ150: 0.637 | AK150: 9.3 | AL150: 0 | AM150: 0 | AN150: 3 | AO150: 7 | AR150: 31.74571429 | AS150: 0.4232761905
A151: 3347010 | B151: 8 | C151: Ulster | D151: 30 - County | E151: 30 | F151: MILL BROOK RD | G151: MILL BROOK | H151: 42 | I151: 10.53 | J151: 2 | K151: 2001 | L151: 1292 | M151: 5.404 | N151: N | O151: cyclical | P151: 0 | Q151: 3 | R151: N | S151: 09 | T151: 2 | U151: 0.016 | V151: 6 | W151: Fair | X151: 6.019 | Y151: 2018-09-26 | Z151: 6.019 | AA151: 09 | AB151: 5 | AC151: 5 | AD151: 7.857142857 | AE151: 4.455 | AF151: 17.16 | AG151: N | AH151: 0 | AI151: 1.078 | AJ151: 6.853 | AK151: 4.8125 | AL151: 0 | AM151: 0 | AN151: 2 | AO151: 2 | AR151: 22.60064286 | AS151: 0.3013419048
A152: 3347020 | B152: 8 | C152: Ulster | D152: 30 - County | E152: 30 | F152: GOSSOO ROAD | G152: BUSHNELLSVILLE CK | H152: 17 | I152: 4.91 | J152: 99 | K152: 1988 | L152: 860 | M152: 5.246 | N152: N | O152: cyclical | P152: 0 | Q152: 4 | R152: N | S152: 09 | T152: 1 | U152: 0.067 | V152: 6 | W152: Fair | X152: 4.807 | Y152: 2019-08-19 | Z152: 4.807 | AA152: 09 | AB152: 5 | AC152: 5 | AD152: 7.857142857 | AE152: 13.42 | AF152: 17.16 | AG152: N | AH152: 0 | AI152: 0.49 | AJ152: 1.981 | AK152: 13.5 | AL152: 0 | AM152: 0 | AN152: 3 | AR152: 26.82814286 | AS152: 0.3577085714
A153: 3347030 | B153: 8 | C153: Ulster | D153: 30 - County | E153: 30 | F153: MALDEN TURNPIKE | G153: SAWYER KILL | H153: 2094 | I153: 7.93 | J153: 5 | K153: 1933 | L153: 1020 | M153: 6.053 | N153: N | O153: cyclical | P153: 0 | Q153: 3 | R153: N | S153: 09 | T153: 3 | U153: 0.082 | V153: 5 | W153: Fair | X153: 5.731 | Y153: 2019-10-16 | Z153: 5.731 | AA153: 17 | AB153: 6 | AC153: 6 | AD153: 3.928571429 | AE153: 6.38 | AF153: 6.105 | AG153: N | AH153: 0 | AI153: 6.111 | AJ153: 6.475 | AK153: 8.1375 | AL153: 0 | AM153: 0 | AN153: 2 | AO153: 5 | AR153: 26.65207143 | AS153: 0.3553609524
A154: 3347040 | B154: 8 | C154: Ulster | D154: 30 - County | E154: 30 | F154: MOSSY BROOK RD | G154: COXING KILL | H154: 912 | I154: 4.91 | J154: 1 | K154: 1966 | L154: 2376 | M154: 5.172 | N154: Y | O154: cyclical | P154: 0 | Q154: 4 | R154: N | S154: 09 | T154: 1 | U154: 0.073 | V154: 5 | W154: Fair | X154: 4.741 | Y154: 2019-10-01 | Z154: 4.741 | AA154: 09 | AB154: 4 | AC154: 4 | AD154: 11.78571429 | AE154: 13.9975 | AF154: 24.75 | AG154: N | AH154: 0 | AI154: 5.362 | AJ154: 1.981 | AK154: 0.775 | AL154: 0 | AM154: 0 | AN154: 3 | AO154: 1 | AR154: 22.90371429 | AS154: 0.3053828571
A155: 3347050 | B155: 8 | C155: Ulster | D155: 30 - County | E155: 30 | F155: MARCUS ROAD | G155: BEER KILL | H155: 133 | I155: 4.91 | J155: 4 | K155: 2001 | L155: 1502 | M155: 4.789 | N155: N | O155: cyclical | P155: 0 | Q155: 5 | R155: N | S155: 09 | T155: 2 | U155: 0.049 | V155: 5 | W155: Fair | X155: 4.192 | Y155: 2019-04-23 | Z155: 4.192 | AA155: 09 | AB155: 5 | AC155: 5 | AD155: 7.857142857 | AE155: 20.02 | AF155: 17.16 | AG155: N | AH155: 0 | AI155: 2.415 | AJ155: 1.981 | AK155: 7.475 | AL155: 0 | AM155: 0 | AN155: 4 | AO155: 4 | AR155: 23.72814286 | AS155: 0.3163752381
A156: 3347060 | B156: 8 | C156: Ulster | D156: 30 - County | E156: 30 | F156: SILVER HOLLOW RD | G156: WARNER CREEK | H156: 183 | I156: 4.91 | J156: 99 | K156: 1987 | L156: 1326 | M156: 4.386 | N156: N | O156: majorrehab | P156: 0 | Q156: 5 | R156: N | S156: 09 | T156: 1 | U156: 0.304 | V156: 5 | W156: Fair | X156: 4.175 | Y156: 2019-08-19 | Z156: 4.175 | AA156: 09 | AB156: 4 | AC156: 4 | AD156: 11.78571429 | AE156: 20.24 | AF156: 24.75 | AG156: =IF(W156="Poor", "Y", "N") -> N | AH156: 0 | AI156: 2.842 | AJ156: 1.981 | AK156: 13.5 | AL156: 0 | AM156: 0 | AN156: 4 | AR156: 34.10871429 | AS156: 0.4547828571
A157: 3347070 | B157: 8 | C157: Ulster | D157: 30 - County | E157: 30 | F157: MT PLESANT | G157: ESPOUS CREEK | I157: 4.91 | J157: 1 | K157: 1934 | L157: 6100 | N157: N | O157: N/A | P157: 99 | R157: Y | S157: 18 | T157: 1 | X157: 0 | Y157: 00:00:00 | Z157: 0 | AA157: 09 | AC157: 0 | AF157: 27.5 | AJ157: 1.981 | AK157: 0.775 | AL157: 0 | AM157: 5 | AN157: 0 | AO157: 1 | AR157: 7.756 | AS157: 0.1034133333
A158: 3347080 | B158: 8 | C158: Ulster | D158: 30 - County | E158: 30 | F158: PANTHER KILL ROAD | G158: PANTHER KILL | H158: 62 | I158: 4.91 | J158: 99 | K158: 1969 | L158: 675 | M158: 4.807 | N158: Y | O158: majorrehab | P158: 0 | Q158: 2 | R158: N | S158: 09 | T158: 1 | U158: 0.332 | V158: 5 | W158: Fair | X158: 4.404 | Y158: 2019-11-13 | Z158: 4.404 | AA158: 09 | AB158: 5 | AC158: 5 | AD158: =27.5-(AC158*(27.5/7)) -> 7.857142857 | AE158: 17.7375 | AF158: 17.16 | AG158: N | AH158: 0 | AI158: 1.4 | AJ158: 1.981 | AK158: 13.5 | AL158: 0 | AM158: 0 | AN158: 1 | AR158: 25.73814286 | AS158: 0.3431752381
A159: 3347090 | B159: 8 | C159: Ulster | D159: 30 - County | E159: 30 | F159: Denning Rd | G159: EB Neversink River | H159: 265 | I159: 4.91 | J159: 16 | K159: 1936 | L159: 4295 | M159: 7 | N159: N | O159: cyclical | Q159: 4 | R159: N | S159: 03 | T159: E | U159: 0.171 | V159: 8 | W159: Good | X159: 6.702 | Y159: 2018-12-03 | Z159: 6.702 | AA159: 09 | AB159: 7 | AC159: 7 | AD159: 0 | AE159: 1.045 | AF159: 1.6225 | AG159: N | AH159: 0 | AI159: 3.626 | AJ159: 1.981 | AK159: 11.325 | AL159: 0 | AM159: 0 | AN159: 3 | AO159: 16 | AR159: 19.932 | AS159: 0.26576
A160: 3347100 | B160: 8 | C160: Ulster | D160: 30 - County | E160: 30 | F160: MABEN HOLLOW ROAD | G160: ESOPUS CREEK | H160: 1 | I160: 4.91 | J160: 99 | K160: 2013 | L160: 846 | M160: 6.614 | N160: N | O160: cyclical | P160: 0 | Q160: 4 | R160: N | S160: 09 | T160: 1 | U160: 0.067 | V160: 7 | W160: Good | X160: 6.702 | Y160: 2019-05-28 | Z160: 6.702 | AA160: 09 | AB160: 6 | AC160: 6 | AD160: 3.928571429 | AE160: 1.045 | AF160: 6.105 | AG160: N | AH160: 0 | AI160: 0 | AJ160: 1.981 | AK160: 13.5 | AL160: 0 | AM160: 0 | AN160: 3 | AR160: 22.40957143 | AS160: 0.2987942857
A161: 3347110 | B161: 8 | C161: Ulster | D161: 30 - County | E161: 30 | F161: WOODLAND VALLEY RD | G161: PANTHER KILL | H161: 563 | I161: 4.91 | J161: 99 | K161: 1999 | L161: 1703 | M161: 4.789 | N161: N | O161: maintproject | P161: 0 | Q161: 4 | R161: N | S161: 09 | T161: 2 | U161: 0.096 | V161: 5 | W161: Fair | X161: 4.383 | Y161: 2019-04-22 | Z161: 4.383 | AA161: 09 | AB161: 5 | AC161: 5 | AD161: 7.857142857 | AE161: 18.095 | AF161: 17.16 | AG161: N | AH161: 0 | AI161: 4.872 | AJ161: 1.981 | AK161: 13.5 | AL161: 0 | AM161: 0 | AN161: 3 | AR161: 31.21014286 | AS161: 0.4161352381
A162: 3347120 | B162: 8 | C162: Ulster | D162: 30 - County | E162: 30 | F162: FOX HOLLOW ROAD | G162: ESOPUS CREEK | H162: 83 | I162: 4.91 | J162: 1 | K162: 1953 | L162: 2575 | M162: 5.033 | N162: Y | O162: maintproject | P162: 0 | Q162: 4 | R162: N | S162: 09 | T162: 2 | U162: 0.064 | V162: 4 | W162: Poor | X162: 4.738 | Y162: 2019-10-02 | Z162: 4.738 | AA162: 09 | AB162: 4 | AC162: 4 | AD162: 11.78571429 | AE162: 14.1075 | AF162: 24.75 | AG162: Y | AH162: 5 | AI162: 1.897 | AJ162: 1.981 | AK162: 0.775 | AL162: 0 | AM162: 0 | AN162: 3 | AO162: 1 | AR162: 24.43871429 | AS162: 0.3258495238
A163: 3347130 | B163: 8 | C163: Ulster | D163: 30 - County | E163: 30 | F163: MCKINLEY HOLLW RD | G163: ESOPUS CREEK | H163: 78 | I163: 4.91 | J163: 99 | K163: 1964 | L163: 2018 | M163: 7 | N163: N | O163: cyclical | Q163: 4 | R163: N | S163: 09 | T163: 1 | U163: 0.069 | V163: 8 | W163: Good | X163: 6.491 | Y163: 2019-08-21 | Z163: 6.491 | AA163: 09 | AB163: 7 | AC163: 7 | AD163: 0 | AE163: 2.1725 | AF163: 1.6225 | AG163: N | AH163: 0 | AI163: 1.799 | AJ163: 1.981 | AK163: 13.5 | AL163: 0 | AM163: 0 | AN163: 3 | AR163: 20.28 | AS163: 0.2704
A164: 3347140 | B164: 8 | C164: Ulster | D164: 30 - County | E164: 30 | F164: BURNHAM HOLLOW RD | G164: ESOPUS CREEK | H164: 39 | I164: 4.91 | J164: 99 | K164: 1964 | L164: 1302 | M164: 5.825 | N164: N | O164: cyclical | P164: 0 | Q164: 4 | R164: N | S164: 09 | T164: 1 | U164: 0.068 | V164: 5 | W164: Fair | X164: 5.385 | Y164: 2018-06-14 | Z164: 5.385 | AA164: 09 | AB164: 5 | AC164: 5 | AD164: 7.857142857 | AE164: 10.01 | AF164: 17.16 | AG164: N | AH164: 0 | AI164: 0.945 | AJ164: 1.981 | AK164: 13.5 | AL164: 0 | AM164: 0 | AN164: 3 | AR164: 27.28314286 | AS164: 0.3637752381
A165: 3347160 | B165: 8 | C165: Ulster | D165: 30 - County | E165: 30 | F165: COUNTY ROAD 54 | G165: BEAVER KILL | H165: 125 | I165: 4.91 | J165: 99 | K165: 1939 | L165: 1998 | M165: 3.935 | N165: N | O165: majorrehab | P165: 20 | Q165: 4 | R165: Y | S165: 15 | T165: 1 | U165: 0.523 | V165: 5 | W165: Fair | X165: 3.871 | Y165: 2019-08-14 | Z165: 3.871 | AA165: 09 | AB165: 4 | AC165: 4 | AD165: 11.78571429 | AE165: 22.4125 | AF165: 24.75 | AG165: N | AH165: 0 | AI165: 2.317 | AJ165: 1.981 | AK165: 13.5 | AL165: 1.325 | AM165: 5 | AN165: 3 | AP165: 20 | AR165: 38.90871429 | AS165: 0.5187828571
A166: 3347170 | B166: 8 | C166: Ulster | D166: 30 - County | E166: 30 | F166: WOODLND VALLEY RD | G166: DOUGHERTY BROOK | H166: 563 | I166: 4.91 | J166: 99 | K166: 1970 | L166: 1026 | M166: 4.228 | N166: N | O166: majorrehab | P166: 0 | Q166: 3 | R166: N | S166: 09 | T166: 1 | U166: 0.353 | V166: 4 | W166: Poor | X166: 3.885 | Y166: 2018-07-24 | Z166: 3.885 | AA166: 09 | AB166: 4 | AC166: 4 | AD166: 11.78571429 | AE166: 22.275 | AF166: 24.75 | AG166: Y | AH166: 5 | AI166: 4.872 | AJ166: 1.981 | AK166: 13.5 | AL166: 0 | AM166: 0 | AN166: 2 | AR166: 39.13871429 | AS166: 0.5218495238
A167: 3347180 | B167: 8 | C167: Ulster | D167: 30 - County | E167: 30 | F167: GREENVILLE ROAD | G167: PIGEON HOLE BROOK | H167: 67 | I167: 4.91 | J167: 9 | K167: 1990 | L167: 918 | M167: 5.148 | N167: N | O167: cyclical | P167: 0 | Q167: 4 | R167: N | S167: 27 | T167: B | U167: 0.05 | V167: 6 | W167: Fair | X167: 4.481 | Y167: 2019-08-28 | Z167: 4.481 | AA167: 09 | AB167: 5 | AC167: 5 | AD167: 7.857142857 | AE167: 17.05 | AF167: 17.16 | AG167: N | AH167: 0 | AI167: 1.596 | AJ167: 1.981 | AK167: 9.95 | AL167: 0 | AM167: 0 | AN167: 3 | AO167: 9 | AR167: 24.38414286 | AS167: 0.3251219048
A168: 3347190 | B168: 8 | C168: Ulster | D168: 30 - County | E168: 30 | F168: PALENTOWN RD | G168: METTACAHONTS CREE | H168: 383 | I168: 4.91 | J168: 1 | K168: 2000 | L168: 952 | M168: 4.14 | N168: N | O168: majorrehab | Q168: 5 | R168: N | S168: 09 | T168: 2 | U168: 0.283 | V168: 6 | W168: Fair | X168: 6.327 | Y168: 2019-08-01 | Z168: 6.327 | AA168: 09 | AB168: 6 | AC168: 6 | AD168: 3.928571429 | AE168: 2.97 | AF168: 6.105 | AG168: N | AH168: 0 | AI168: 4.151 | AJ168: 1.981 | AK168: 0.775 | AL168: 0 | AM168: 0 | AN168: 4 | AO168: 1 | AR168: 14.83557143 | AS168: 0.197807619
A169: 3347210 | B169: 8 | C169: Ulster | D169: 30 - County | E169: 30 | F169: COUNTY ROAD 9 | G169: DWAAR KILL | H169: 3994 | I169: 6.04 | J169: 5 | K169: 2015 | L169: 2717 | M169: 6.862 | N169: N | O169: cyclical | Q169: 4 | R169: N | S169: 03 | T169: E | U169: 0.124 | V169: 8 | W169: Good | X169: 5.4 | Y169: 2019-08-30 | Z169: 5.4 | AA169: 08 | AB169: 7 | AC169: 7 | AD169: 0 | AE169: 9.57 | AF169: 1.6225 | AG169: N | AH169: 0 | AI169: 6.797 | AJ169: 5.628 | AK169: 8.1375 | AL169: 0 | AM169: 0 | AN169: 3 | AO169: 5 | AR169: 23.5625 | AS169: 0.3141666667
A170: 3347220 | B170: 8 | C170: Ulster | D170: 30 - County | E170: 30 | F170: LASHER ROAD | G170: BIRCH CREEK | H170: 40 | I170: 4.91 | J170: 1 | K170: 2007 | L170: 1314 | M170: 6.228 | N170: N | O170: cyclical | P170: 0 | Q170: 4 | R170: N | S170: 09 | T170: 1 | U170: 0.018 | V170: 5 | W170: Fair | X170: 6.018 | Y170: 2019-10-18 | Z170: 6.018 | AA170: 09 | AB170: 6 | AC170: 6 | AD170: 3.928571429 | AE170: 4.565 | AF170: 6.105 | AG170: N | AH170: 0 | AI170: 0.98 | AJ170: 1.981 | AK170: 0.775 | AL170: 0 | AM170: 0 | AN170: 3 | AO170: 1 | AR170: 10.66457143 | AS170: 0.1421942857
A171: 3347230 | B171: 8 | C171: Ulster | D171: 30 - County | E171: 30 | F171: FOORDMORE RD | G171: RONDOUT CREEK | H171: 2528 | I171: 4.85 | J171: 2 | K171: 1896 | L171: 3750 | M171: 5.145 | N171: N | O171: cyclical | P171: 0 | Q171: 4 | R171: N | S171: 09 | T171: 2 | U171: 0.025 | V171: 5 | W171: Fair | X171: 5.156 | Y171: 2018-09-11 | Z171: 5.156 | AA171: 09 | AB171: 4 | AC171: 4 | AD171: 11.78571429 | AE171: 10.5875 | AF171: 24.75 | AG171: N | AH171: 0 | AI171: 6.377 | AJ171: 1.806 | AK171: 4.8125 | AL171: 0 | AM171: 0 | AN171: 3 | AO171: 2 | AR171: 27.78121429 | AS171: 0.3704161905
A172: 3347240 | B172: 8 | C172: Ulster | D172: 30 - County | E172: 30 | F172: CR 49 Dry BrookRD | G172: DRY BROOK | H172: 27 | I172: 4.76 | J172: 99 | K172: 1989 | L172: 1200 | M172: 5.298 | N172: Y | O172: cyclical | P172: 0 | Q172: 4 | R172: N | S172: 09 | T172: 1 | U172: 0.067 | V172: 4 | W172: Poor | X172: 5.088 | Y172: 2019-10-09 | Z172: 5.088 | AA172: 09 | AB172: 4 | AC172: 4 | AD172: 11.78571429 | AE172: 11.0275 | AF172: 24.75 | AG172: Y | AH172: 5 | AI172: 0.588 | AJ172: 1.54 | AK172: 13.5 | AL172: 0 | AM172: 0 | AN172: 3 | AR172: 35.41371429 | AS172: 0.4721828571
A173: 3347250 | B173: 8 | C173: Ulster | D173: 30 - County | E173: 30 | F173: STONY CLOVE LANE | G173: STONEY CLOVE CRK | H173: 64 | I173: 4.91 | J173: 99 | K173: 1955 | L173: 1140 | M173: 4.789 | N173: N | O173: deckrepl | P173: 0 | Q173: 4 | R173: N | S173: 09 | T173: 1 | U173: 0.097 | V173: 5 | W173: Fair | X173: 4.281 | Y173: 2019-04-02 | Z173: 4.281 | AA173: 09 | AB173: 5 | AC173: 5 | AD173: 7.857142857 | AE173: 18.755 | AF173: 17.16 | AG173: N | AH173: 0 | AI173: 1.47 | AJ173: 1.981 | AK173: 13.5 | AL173: 0 | AM173: 0 | AN173: 3 | AR173: 27.80814286 | AS173: 0.3707752381
A174: 3347260 | B174: 8 | C174: Ulster | D174: 30 - County | E174: 30 | F174: HURLEY MT ROAD | G174: ESOPUS CREEK | H174: 1004 | I174: 4.85 | J174: 16 | K174: 1958 | L174: 8900 | M174: 3.847 | N174: Y | O174: replace | P174: 0 | Q174: 4 | R174: N | S174: 13 | T174: 1 | U174: 0.413 | V174: 4 | W174: Poor | X174: 3.463 | Y174: 2018-08-14 | Z174: 3.463 | AA174: 08 | AB174: 4 | AC174: 4 | AD174: 11.78571429 | AE174: 25.025 | AF174: 24.75 | AG174: Y | AH174: 5 | AI174: 5.46 | AJ174: 1.806 | AK174: 11.325 | AL174: 0 | AM174: 0 | AN174: 3 | AO174: 16 | AR174: 38.37671429 | AS174: 0.5116895238
A175: 3347270 | B175: 8 | C175: Ulster | D175: 30 - County | E175: 30 | F175: MILLARD BURNETT ROAD | G175: PLATTEKILL CREEK | H175: 94 | I175: 4.91 | J175: 99 | K175: 2001 | L175: 1080 | M175: 5.769 | N175: N | O175: cyclical | P175: 0 | Q175: 4 | R175: N | S175: 09 | T175: 2 | U175: 0.064 | V175: 6 | W175: Fair | X175: 5.769 | Y175: 2018-09-20 | Z175: 5.769 | AA175: 09 | AB175: 5 | AC175: 5 | AD175: 7.857142857 | AE175: 5.9125 | AF175: 17.16 | AG175: N | AH175: 0 | AI175: 2.191 | AJ175: 1.981 | AK175: 13.5 | AL175: 0 | AM175: 0 | AN175: 3 | AR175: 28.52914286 | AS175: 0.3803885714
A176: 3347280 | B176: 8 | C176: Ulster | D176: 30 - County | E176: 30 | F176: BECKER ROAD | G176: PLATTEKILL CREEK | H176: 61 | I176: 4.91 | J176: 99 | K176: 1996 | L176: 1024 | M176: 6.815 | N176: N | O176: cyclical | P176: 0 | Q176: 5 | R176: N | S176: 25 | T176: 7 | U176: 0.108 | V176: 6 | W176: Fair | X176: 5.333 | Y176: 2019-04-22 | Z176: 5.333 | AA176: 09 | AB176: 6 | AC176: 6 | AD176: 3.928571429 | AE176: 10.12 | AF176: 6.105 | AG176: N | AH176: 0 | AI176: 1.372 | AJ176: 1.981 | AK176: 13.5 | AL176: 0 | AM176: 0 | AN176: 4 | AR176: 24.78157143 | AS176: 0.3304209524
A177: 3347290 | B177: 8 | C177: Ulster | D177: 30 - County | E177: 30 | F177: TANNERY BROOK RD | G177: TANNERY BROOK | H177: 1442 | I177: 1.84 | J177: 1 | K177: 1940 | L177: 1004 | M177: 4.368 | N177: N | O177: deckrepl | P177: 0 | Q177: 4 | R177: N | S177: 09 | T177: 2 | U177: 0.094 | V177: 4 | W177: Poor | X177: 6.231 | Y177: 2019-10-04 | Z177: 6.231 | AA177: 17 | AB177: 6 | AC177: 6 | AD177: 3.928571429 | AE177: 3.3 | AF177: 6.105 | AG177: Y | AH177: 5 | AI177: 5.754 | AJ177: 0.462 | AK177: 0.775 | AL177: 0 | AM177: 0 | AN177: 3 | AO177: 1 | AR177: 18.91957143 | AS177: 0.2522609524
A178: 3347300 | B178: 8 | C178: Ulster | D178: 30 - County | E178: 30 | F178: BONE HOLLOW ROAD | G178: NORTH PETERS KILL | H178: 311 | I178: 0.93 | J178: 1 | K178: 1938 | L178: 936 | M178: 3.316 | N178: Y | O178: replace | P178: 0 | Q178: 4 | R178: N | S178: 09 | T178: 1 | U178: 0.451 | V178: 4 | W178: Poor | X178: 3.346 | Y178: 2018-04-11 | Z178: 3.346 | AA178: 09 | AB178: 4 | AC178: 4 | AD178: 11.78571429 | AE178: 25.9325 | AF178: 24.75 | AG178: Y | AH178: 5 | AI178: 3.892 | AJ178: 0.231 | AK178: 0.775 | AL178: 0 | AM178: 0 | AN178: 3 | AO178: 1 | AR178: 24.68371429 | AS178: 0.3291161905
A179: 3347310 | B179: 8 | C179: Ulster | D179: 30 - County | E179: 30 | F179: LOST CLOVE ROAD | G179: ESOPUS CREEK | H179: 77 | I179: 4.91 | J179: 5 | K179: 1966 | L179: 2006 | M179: 5.885 | N179: N | O179: cyclical | Q179: 5 | R179: N | S179: 09 | T179: 1 | U179: 0.027 | V179: 6 | W179: Fair | X179: 5.885 | Y179: 2018-10-24 | Z179: 5.885 | AA179: 09 | AB179: 5 | AC179: 5 | AD179: 7.857142857 | AE179: 5.4725 | AF179: 17.16 | AG179: N | AH179: 0 | AI179: 1.764 | AJ179: 1.981 | AK179: 8.1375 | AL179: 0 | AM179: 0 | AN179: 4 | AO179: 5 | AR179: 23.73964286 | AS179: 0.3165285714
A180: 3347320 | B180: 8 | C180: Ulster | D180: 30 - County | E180: 30 | F180: COUNTY ROAD 18 | G180: WALLKILL RIVER | H180: 4009 | I180: 6.83 | J180: 9 | K180: 1915 | L180: 9000 | M180: 3.176 | N180: Y | O180: replace | P180: 20 | Q180: 4 | R180: N | S180: 25 | T180: B | U180: 0.584 | V180: 4 | W180: Poor | X180: 4 | Y180: 2019-05-06 | Z180: 4 | AA180: 08 | AB180: 5 | AC180: 5 | AD180: 7.857142857 | AE180: 21.2575 | AF180: 17.16 | AG180: Y | AH180: 5 | AI180: 6.832 | AJ180: 6.3 | AK180: 9.95 | AL180: 1.325 | AM180: 0 | AN180: 3 | AO180: 9 | AP180: 20 | AR180: 40.26414286 | AS180: 0.5368552381
A181: 3347330 | B181: 8 | C181: Ulster | D181: 30 - County | E181: 30 | F181: MELLERT ROAD | G181: SAW KILL | H181: 82 | I181: 4.91 | J181: 99 | K181: 1981 | L181: 958 | M181: 5.128 | N181: N | O181: maintproject | P181: 0 | Q181: 5 | R181: N | S181: 02 | T181: E | U181: 0.139 | V181: 5 | W181: Fair | X181: 4.404 | Y181: 2018-08-06 | Z181: 4.404 | AA181: 09 | AB181: 5 | AC181: 5 | AD181: 7.857142857 | AE181: 17.7375 | AF181: 17.16 | AG181: N | AH181: 0 | AI181: 1.827 | AJ181: 1.981 | AK181: 13.5 | AL181: 0 | AM181: 0 | AN181: 4 | AR181: 29.16514286 | AS181: 0.3888685714
A182: 3347340 | B182: 8 | C182: Ulster | D182: 30 - County | E182: 30 | F182: COUNTY ROAD 7 | G182: VERKEERDER KILL | H182: 2104 | I182: 3.8 | J182: 2 | K182: 1938 | L182: 1482 | M182: 5.02 | N182: N | O182: minorrehab | P182: 0 | Q182: 4 | R182: N | S182: 09 | T182: 1 | U182: 0.041 | V182: 5 | W182: Fair | X182: 4.877 | Y182: 2019-04-03 | Z182: 4.877 | AA182: 08 | AB182: 4 | AC182: 4 | AD182: 11.78571429 | AE182: 13.2 | AF182: 24.75 | AG182: N | AH182: 0 | AI182: 6.181 | AJ182: 0.84 | AK182: 4.8125 | AL182: 0 | AM182: 0 | AN182: 3 | AO182: 2 | AR182: 26.61921429 | AS182: 0.3549228571
A183: 3347360 | B183: 8 | C183: Ulster | D183: 30 - County | E183: 30 | F183: DE WITT ROAD | G183: METTACAHONTS CRK | H183: 59 | I183: 4.91 | J183: 3 | K183: 1958 | L183: 1267 | M183: 5.5 | N183: N | O183: cyclical | P183: 0 | Q183: 5 | R183: N | S183: 09 | T183: 1 | U183: 0.022 | V183: 6 | W183: Fair | X183: 5.192 | Y183: 2018-11-29 | Z183: 5.192 | AA183: 09 | AB183: 5 | AC183: 5 | AD183: 7.857142857 | AE183: 10.3675 | AF183: 17.16 | AG183: N | AH183: 0 | AI183: 1.337 | AJ183: 1.981 | AK183: 6.4375 | AL183: 0 | AM183: 0 | AN183: 4 | AO183: 3 | AR183: 21.61264286 | AS183: 0.2881685714
A184: 3347370 | B184: 8 | C184: Ulster | D184: 30 - County | E184: 30 | F184: WOODLAND VLY ROAD | G184: ESOPUS CREEK | H184: 619 | I184: 4.91 | J184: 2 | K184: 1998 | L184: 5520 | M184: 3.87 | N184: Y | O184: majorrehab | P184: 8 | Q184: 4 | R184: Y | S184: 19 | T184: 2 | U184: 0.498 | V184: 6 | W184: Fair | X184: 5.65 | Y184: 2018-09-20 | Z184: 5.65 | AA184: 09 | AB184: 6 | AC184: 6 | AD184: 3.928571429 | AE184: 6.82 | AF184: 6.105 | AG184: N | AH184: 0 | AI184: 4.998 | AJ184: 1.981 | AK184: 4.8125 | AL184: 4.415 | AM184: 5 | AN184: 3 | AO184: 2 | AP184: 8 | AR184: 28.13507143 | AS184: 0.3751342857
A185: 3347380 | B185: 8 | C185: Ulster | D185: 30 - County | E185: 30 | F185: SOUTH MOUNTAIN RD | G185: KLYNE KILL | H185: 171 | I185: 4.91 | J185: 1 | K185: 1930 | L185: 989 | M185: 4.719 | N185: N | O185: vertdown | P185: 0 | Q185: 4 | R185: N | S185: 09 | T185: 1 | U185: 0.057 | V185: 6 | W185: Fair | X185: 4.769 | Y185: 2019-04-30 | Z185: 4.769 | AA185: 09 | AB185: 5 | AC185: 5 | AD185: 7.857142857 | AE185: 13.8875 | AF185: 17.16 | AG185: N | AH185: 0 | AI185: 2.744 | AJ185: 1.981 | AK185: 0.775 | AL185: 0 | AM185: 0 | AN185: 3 | AO185: 1 | AR185: 16.35714286 | AS185: 0.2180952381
A186: 3347400 | B186: 8 | C186: Ulster | D186: 30 - County | E186: 30 | F186: COUNTY ROAD 6 | G186: RONDOUT CREEK | H186: 1658 | I186: 5.61 | J186: 20 | K186: 1965 | L186: 9000 | M186: 5.319 | N186: N | O186: minorrehab | P186: 20 | Q186: 4 | R186: N | S186: 13 | T186: 1 | U186: 0.117 | V186: 5 | W186: Fair | X186: 4.438 | Y186: 2019-06-24 | Z186: 4.438 | AA186: 09 | AB186: 5 | AC186: 5 | AD186: 7.857142857 | AE186: 17.2975 | AF186: 17.16 | AG186: N | AH186: 0 | AI186: 5.985 | AJ186: 5.453 | AK186: 11.45 | AL186: 1.325 | AM186: 0 | AN186: 3 | AO186: 20 | AP186: 20 | AR186: 35.07014286 | AS186: 0.4676019048
A187: 3347410 | B187: 8 | C187: Ulster | D187: 30 - County | E187: 30 | F187: CO RD 6A | G187: COXING KILL | H187: 966 | I187: 6.04 | J187: 3 | K187: 1941 | L187: 1660 | M187: 5.281 | N187: N | O187: cyclical | P187: 0 | Q187: 4 | R187: N | S187: 09 | T187: 1 | U187: 0.041 | V187: 6 | W187: Fair | X187: 5 | Y187: 2018-05-23 | Z187: 5 | AA187: 08 | AB187: 5 | AC187: 5 | AD187: 7.857142857 | AE187: 12.1825 | AF187: 17.16 | AG187: N | AH187: 0 | AI187: 5.397 | AJ187: 5.628 | AK187: 6.4375 | AL187: 0 | AM187: 0 | AN187: 3 | AO187: 3 | AR187: 28.31964286 | AS187: 0.3775952381
A188: 3347420 | B188: 8 | C188: Ulster | D188: 30 - County | E188: 30 | F188: DENNING ROAD | G188: E BR NEVERSINK RV | H188: 265 | I188: 4.91 | J188: 3 | K188: 1970 | L188: 2548 | M188: 4.226 | N188: Y | O188: deckrepl | P188: 0 | Q188: 4 | R188: N | S188: 09 | T188: 1 | U188: 0.18 | V188: 3 | W188: Poor | X188: 4.581 | Y188: 2019-10-03 | Z188: 4.581 | AA188: 09 | AB188: 4 | AC188: 4 | AD188: 11.78571429 | AE188: 15.7025 | AF188: 24.75 | AG188: =IF(W188="Poor", "Y", "N") -> Y | AH188: 5 | AI188: 3.626 | AJ188: 1.981 | AK188: 6.4375 | AL188: 0 | AM188: 0 | AN188: 3 | AO188: 3 | AR188: 31.83021429 | AS188: 0.4244028571
A189: 3347430 | B189: 8 | C189: Ulster | D189: 30 - County | E189: 30 | F189: COUNTY ROAD 19 | G189: WALLKILL RIVER | H189: 547 | I189: 5.52 | J189: 9 | K189: 1940 | L189: 9242 | M189: 4.754 | N189: N | O189: majorrehab | P189: 0 | Q189: 4 | R189: Y | S189: 18 | T189: 1 | U189: 0.348 | V189: 4 | W189: Poor | X189: 4.145 | Y189: 2019-07-22 | Z189: 4.145 | AA189: 09 | AB189: 4 | AC189: 4 | AD189: 11.78571429 | AE189: 20.35 | AF189: 24.75 | AG189: Y | AH189: 5 | AI189: 4.837 | AJ189: 5.425 | AK189: 9.95 | AL189: 0 | AM189: 5 | AN189: 3 | AO189: 9 | AR189: 44.99771429 | AS189: 0.5999695238
A190: 3347440 | B190: 8 | C190: Ulster | D190: 30 - County | E190: 30 | F190: CAPE AVENUE | G190: BEER KILL | I190: 1 | J190: 21 | K190: 1940 | L190: 2100 | M190: 4.833 | N190: N | O190: minorrehab | P190: 0 | Q190: 5 | R190: N | S190: 09 | T190: 1 | U190: 0.108 | V190: 5 | W190: Fair | X190: 4.8 | Y190: 2018-11-01 | Z190: 4.8 | AA190: 17 | AB190: 5 | AC190: 5 | AD190: =27.5-(AC190*(27.5/7)) -> 7.857142857 | AE190: 13.53 | AF190: 17.16 | AG190: N | AH190: 0 | AJ190: 0.259 | AK190: 11.5125 | AL190: 0 | AM190: 0 | AN190: 4 | AO190: 21 | AR190: 23.62864286 | AS190: 0.3150485714
A191: 3347450 | B191: 8 | C191: Ulster | D191: 30 - County | E191: 30 | F191: COUNTY ROAD 7A | G191: SHAWANGUNK KILL | H191: 264 | I191: 4.91 | J191: 3 | K191: 1941 | L191: 3479 | M191: 4.082 | N191: Y | O191: majorrehab | P191: 0 | Q191: 4 | R191: Y | S191: 19 | T191: 1 | U191: 0.435 | V191: 4 | W191: Poor | X191: 3.396 | Y191: 2019-08-01 | Z191: 3.396 | AA191: 09 | AB191: 3 | AC191: 3 | AD191: 15.71428571 | AE191: 25.575 | AF191: 27.06 | AG191: Y | AH191: 5 | AI191: 3.598 | AJ191: 1.981 | AK191: 6.4375 | AL191: 0 | AM191: 5 | AN191: 3 | AO191: 3 | AR191: 40.73078571 | AS191: 0.5430771429
A192: 3347460 | B192: 8 | C192: Ulster | D192: 30 - County | E192: 30 | F192: COUNTY ROUTE 007 | G192: RONDOUT CREEK | H192: 1555 | I192: 3.6 | J192: 1 | K192: 1957 | L192: 6594 | M192: 4.486 | N192: Y | O192: minorrehab | P192: 0 | Q192: 4 | R192: N | S192: 01 | T192: B | U192: 0.177 | V192: 4 | W192: Poor | X192: 3.418 | Y192: 2018-11-07 | Z192: 3.418 | AA192: 17 | AB192: 4 | AC192: 4 | AD192: 11.78571429 | AE192: 25.465 | AF192: 24.75 | AG192: Y | AH192: 5 | AI192: 5.852 | AJ192: 0.728 | AK192: 0.775 | AL192: 0 | AM192: 0 | AN192: 3 | AO192: 1 | AR192: 27.14071429 | AS192: 0.3618761905
A193: 3347460 | B193: 8 | C193: Ulster | D193: 30 - County | E193: 30 | F193: COUNTY ROUTE 007 | G193: RONDOUT CREEK | H193: 1555 | I193: 3.6 | J193: 1 | K193: 1957 | L193: 6594 | M193: 4.486 | N193: Y | O193: minorrehab | P193: 0 | Q193: 4 | R193: N | S193: 13 | T193: 1 | U193: 0.177 | V193: 4 | W193: Poor | X193: 3.418 | Y193: 2018-11-07 | Z193: 3.418 | AA193: 17 | AB193: 4 | AC193: 4 | AD193: 11.78571429 | AE193: 25.465 | AF193: 24.75 | AG193: Y | AH193: 5 | AI193: 5.852 | AJ193: 0.728 | AK193: 0.775 | AL193: 0 | AM193: 0 | AN193: 3 | AO193: 1 | AR193: 27.14071429 | AS193: 0.3618761905
A194: 3347470 | B194: 8 | C194: Ulster | D194: 30 - County | E194: 30 | F194: DENNING ROAD | G194: E BR NEVERSINK RIVER | H194: 265 | I194: 4.91 | J194: 10 | K194: 1965 | L194: 4100 | M194: 3.643 | N194: Y | O194: majorrehab | P194: 0 | Q194: 2 | R194: N | S194: 09 | T194: 1 | U194: 0.464 | V194: 4 | W194: Poor | X194: 3.6 | Y194: 2019-10-01 | Z194: 3.6 | AA194: 09 | AB194: 3 | AC194: 3 | AD194: 15.71428571 | AE194: 24.4475 | AF194: 27.06 | AG194: Y | AH194: 5 | AI194: 3.626 | AJ194: 1.981 | AK194: 10.5375 | AL194: 0 | AM194: 0 | AN194: 1 | AO194: 10 | AR194: 37.85878571 | AS194: 0.5047838095
A195: 3347480 | B195: 8 | C195: Ulster | D195: 30 - County | E195: 30 | F195: PIROG ROAD | G195: VERKEERDER KILL | H195: 411 | I195: 4.91 | J195: 1 | K195: 1957 | L195: 1217 | M195: 4.351 | N195: N | O195: maintproject | P195: 0 | Q195: 3 | R195: N | S195: 09 | T195: 1 | U195: 0.135 | V195: 6 | W195: Fair | X195: 4.089 | Y195: 2018-06-20 | Z195: 4.089 | AA195: 09 | AB195: 5 | AC195: 5 | AD195: 7.857142857 | AE195: 20.46 | AF195: 17.16 | AG195: N | AH195: =_xlfn.IFNA((IF(AG195="N",0,5)),"") -> 0 | AI195: =_xlfn.IFNA((_xlfn.PERCENTRANK.INC(H:H,H195))/(1/7),"") -> 4.41 | AJ195: =(_xlfn.PERCENTRANK.INC(I:I,I195))/(1/7) -> 1.981 | AK195: =IF(J195=99,13.5,(_xlfn.PERCENTRANK.INC(AO:AO,AO195))/(1/12.5)) -> 0.775 | AL195: =IF(OR(P195=0,P195>97),0,(5-(_xlfn.PERCENTRANK.EXC(AP:AP,AP195))/(1/5))) -> 0 | AM195: =IF(R195="Y",5,0) -> 0 | AN195: =IFERROR((Q195-1),0) -> 2 | AO195: =IF(J195=99,"",J195) -> 1 | AP195: =IF(OR(P195=0,P195>97),"",P195) ->  | AR195: =SUM(AN195,AM195,AL195,AK195,AJ195,AI195,AH195,AD195) -> 17.02314286 | AS195: 0.2269752381
A196: 3347490 | B196: 8 | C196: Ulster | D196: 30 - County | E196: 30 | F196: BRIDGE ROAD | G196: STONY KILL | H196: 36 | I196: 3.92 | J196: 1 | K196: 1955 | L196: 584 | M196: 4.577 | N196: Y | O196: maintproject | P196: 0 | Q196: 3 | R196: N | S196: 09 | T196: 1 | U196: 0.151 | V196: 3 | W196: Poor | X196: 4.731 | Y196: 2019-06-14 | Z196: 4.731 | AA196: 19 | AB196: 4 | AC196: 4 | AD196: 11.78571429 | AE196: =IF(Z196>0,27.5-(_xlfn.PERCENTRANK.EXC(Z:Z,Z196))/(1/27.5),"") -> 14.3275 | AF196: =(27.5-(_xlfn.PERCENTRANK.INC(AC:AC,AC196))/(1/27.5)) -> 24.75 | AG196: Y | AH196: 5 | AI196: 0.882 | AJ196: 0.959 | AK196: 0.775 | AL196: 0 | AM196: 0 | AN196: 2 | AO196: 1 | AR196: 21.40171429 | AS196: =AR196/75 -> 0.2853561905
A197: 3347500 | B197: 8 | C197: Ulster | D197: 30 - County | E197: 30 | F197: COUNTY ROAD 30 | G197: SAW KILL | H197: 3596 | I197: 4.47 | J197: 14 | K197: 1958 | L197: 3325 | M197: 3.9 | N197: N | O197: minorrehab | P197: 0 | Q197: 4 | R197: N | S197: 09 | T197: 1 | U197: 0.197 | V197: 5 | W197: Fair | X197: 3.781 | Y197: 2019-09-11 | Z197: 3.781 | AA197: 17 | AB197: 5 | AC197: 5 | AD197: 7.857142857 | AE197: 23.43 | AF197: 17.16 | AG197: N | AH197: 0 | AI197: 6.699 | AJ197: 1.484 | AK197: 11.0625 | AL197: 0 | AM197: 0 | AN197: 3 | AO197: 14 | AR197: 30.10264286 | AS197: 0.4013685714
A198: 3347510 | B198: 8 | C198: Ulster | D198: 30 - County | E198: 30 | F198: COUNTY ROAD 18 | G198: SHAWANGUNK KILL | H198: 976 | I198: 7.53 | J198: 7 | K198: 1960 | L198: 6000 | M198: 3.723 | N198: N | O198: majorrehab | P198: 16 | Q198: 4 | R198: N | S198: 09 | T198: 1 | U198: 0.383 | V198: 4 | W198: Poor | X198: 3.898 | Y198: 2019-09-04 | Z198: 3.898 | AA198: 09 | AB198: 3 | AC198: 3 | AD198: 15.71428571 | AE198: 22.055 | AF198: 27.06 | AG198: Y | AH198: 5 | AI198: 5.425 | AJ198: 6.412 | AK198: 9.3 | AL198: 1.765 | AM198: 0 | AN198: 3 | AO198: 7 | AP198: 16 | AR198: 46.61628571 | AS198: 0.6215504762
A199: 3347520 | B199: 8 | C199: Ulster | D199: 30 - County | E199: 30 | F199: BOICE MILL RD | G199: FALLS MILL BROOK | H199: 149 | I199: 4.91 | J199: 2 | K199: 1962 | L199: 723 | M199: 5.456 | N199: N | O199: minorrehab | P199: 0 | Q199: 4 | R199: N | S199: 09 | T199: 2 | U199: 0.016 | V199: 5 | W199: Fair | X199: 4.269 | Y199: 2018-08-07 | Z199: 4.269 | AA199: 09 | AB199: 5 | AC199: 5 | AD199: 7.857142857 | AE199: 19.0025 | AF199: 17.16 | AG199: N | AH199: 0 | AI199: 2.611 | AJ199: 1.981 | AK199: 4.8125 | AL199: 0 | AM199: 0 | AN199: 3 | AO199: 2 | AR199: 20.26164286 | AS199: 0.2701552381
A200: 3347530 | B200: 8 | C200: Ulster | D200: 30 - County | E200: 30 | F200: LEGGS MILL ROAD | G200: ESOPUS CREEK | H200: 7406 | I200: 4.15 | J200: 7 | K200: 1972 | L200: 12800 | M200: 5.153 | N200: N | O200: majorrehab | P200: 30 | Q200: 4 | R200: N | S200: 09 | T200: 1 | U200: 0.276 | V200: 5 | W200: Fair | X200: 3.806 | Y200: 2018-11-26 | Z200: 3.806 | AA200: 17 | AB200: 5 | AC200: 5 | AD200: 7.857142857 | AE200: 23.0725 | AF200: 17.16 | AG200: N | AH200: 0 | AI200: 6.965 | AJ200: 1.456 | AK200: 9.3 | AL200: 0.15 | AM200: 0 | AN200: 3 | AO200: 7 | AP200: 30 | AR200: 28.72814286 | AS200: 0.3830419048
... 43 more rows
